{"text_format":"1","workbook":"xlsx","n_sheets":8,"sheets":["Introduction","Carbon Tax model","Energy Consumption model","Model settings","CTax variables","Energy variables","Schedule 1","Schedule 2"],"not_rendered":{"charts":3,"images":8,"macros":1,"external_links":0,"defined_names":4,"comments":1,"pivot_tables":0},"unopened":[],"bounds":{"document_bytes":16777216,"sheet_cells":100000,"rows_first":2000,"rows_last":500,"rows_between":2000,"halvings":0,"cell_chars":16384,"cell_head_chars":4096},"cells_cut":0,"cells_raw":0,"read":"whole","date_system":"1900"}

{"sheet":"Introduction","index":0,"n_rows":32,"n_cols":18,"rows_kept":32,"cut":false,"hidden":false,"merged":[[5,10,10,19],[31,10,37,19],[13,10,24,12],[28,10,28,11],[26,3,27,3],[26,4,27,4],[28,14,28,15],[28,17,28,18],[5,4,6,4]]}
[]
[null,"Clay Brick Carbon Tax and Energy model introduction"]
[]
[null,null,"Carbon and Energy legislation and regulation in South Africa",null,null,null,null,null,"The Carbon Tax and Energy Impact assessment model"]
[null,null,null,"South Africa Carbon Tax Infogram",null,null,null,null,null,"Description"]
[null,null,null,null,"A Carbon tax of 120 ZAR/tCO2e for stationary fossil fuel based GHG emissions for carbon intensive sectors including the Clay Brick Sector is expected to be introduced in 2017.",null,null,null,null,null,"The Carbon Tax Impact Assessment Model allows individual brick makers to determine the total volume of emissions over which it will become liable under the Carbon Tax as well as the total costs and the costs per 1000 standards bricks it will incur. In addition to this the model will provide insight into the energy consumption and both energy and carbon mitigation options."]
[]
[]
[]
[]
[]
[]
[null,null,null,null,null,null,null,null,null,"The Carbon Tax Waterfall"]
[null,null,null,null,null,null,null,null,null,null,"The Carbon Tax Waterfall aims at providing a schematic breakdown of the emissions over which an entity becomes liable under the Carbon tax. The waterfall provides insight into the main contributors to the taxable emissions as well as components that can reduce and entity’s exposure."]
[]
[]
[]
[]
[]
[]
[]
[]
[]
[null,null,null,"Clay brick sector energy profile"]
[null,null,null,null,"A breakdown of the body energy, firing energy, electrical energy and transport energy used for the production of Clay bricks in South Africa."]
[]
[null,null,null,null,null,null,null,null,null,"Operation fo the Model"]
[]
[null,null,null,null,null,null,null,null,null,null,"Input variables",null,null,null,"Setting",null,null,"Results"]
[]
[null,null,null,null,null,null,null,null,null,"Acknowledgement"]
[null,null,null,null,null,null,null,null,null,null,"The Carbon Tax Impact Assessment Model was developed by EcoMetrix Africa (Pty) Ltd. for the Clay Brick Association (CBA) with the assistance of the Energy Efficient Clay Brick (EECB). The EECB is funded by the Swiss Agency for Development and Cooperation (SDC) and implemented by Swisscontact. The model has been configured and its outputs prepared by EcoMetrix Africa (Pty) Ltd for the exclusive use by members of the CBA."]

{"sheet":"Carbon Tax model","index":1,"n_rows":40,"n_cols":17,"rows_kept":40,"cut":false,"hidden":false,"merged":[[26,9,27,11],[26,12,27,12],[26,13,27,13],[26,14,27,14],[26,15,27,15]]}
[]
[null,"Clay Brick Carbon Tax Impact Assessment Model"]
[]
[null,"Profile",null,null,null,null,null,null,null,null,null,null,null,null,null,null,"Carbon Tax Exposure (tCO2e)"]
[null,null,"Entity",null,null,null,null,"tCO2e"]
[null,null,null,"In which province of South Africa are you located?",null,null,"Please select"]
[null,null,null,"What kind of firing technology do you use?",null,null,"Please select"]
[null,null,"Carbon Tax"]
[null,null,null,"Do you export a share of your saleable bricks?",null,null,"Please select",{"$f":"IF(G9=\"Yes\",1,0)","v":0},null,null,null,"Component","lift","tCO2e","ZAR","tCO2e/kStB"]
[null,null,null,"Are you partaking in the Carbon budgeting process?",null,null,"Please select",null,null,null,null,"Gross direct emissions",0,{"$f":"H18+H19+H20+H22+H23+H24+H26+H27+H28","v":5060.9535999999998},{"$f":"N10*'Model settings'!$D$10","v":607314.43200000003},{"$f":"N10/$F$16","v":0.33739690666666666},{"$f":"O10/$F$16","v":40.487628800000003}]
[null,null,null,"Do you use organic fuel that is renewable?",null,null,"Please select",{"$f":"IF(G11=\"Yes\",1,0)","v":0},null,null,null,"Transport emissions",{"$f":"N10-N11","v":5060.8535999999995},{"$f":"H26+H27+H28","v":0.1},{"$f":"N11*'Model settings'!$D$10","v":12},{"$f":"N11/$F$16","v":6.6666666666666666E-6},{"$f":"O11/$F$16","v":8.0000000000000004E-4}]
[null,null,null,null,null,null,null,null,null,null,null,"Sequestration of emissions",{"$f":"M11-N12","v":5060.7535999999991},{"$f":"H36+H37+H38","v":0.1},{"$f":"N12*'Model settings'!$D$10","v":12},6.6666666666666666E-6,8.0000000000000004E-4]
[null,"Activity level",null,null,null,null,null,null,null,null,null,"Gross taxable emissions",0,{"$f":"N10-N11-N12","v":5060.7535999999991},{"$f":"N13*'Model settings'!$D$10","v":607290.43199999991},{"$f":"N13/$F$16","v":0.3373835733333333},40.486028799999993]
[null,null,"Production",null,null,"Volume","UoM",null,null,null,null,"Basic tax-free allowance",{"$f":"N13-N14","v":2024.3014399999997},{"$f":"('Model settings'!F5/100)*$N$13","v":3036.4521599999994},{"$f":"N14*'Model settings'!$D$10","v":364374.25919999991},0.20243014399999995,24.291617279999993]
[null,null,null,"Green Bricks",null,20000,"1000 Standard Bricks",null,null,null,null,"Trade exposure allowance",{"$f":"M14-N15","v":2024.2914399999997},{"$f":"IF(G9=\"Yes\",('Model settings'!I5/100)*(F34/F16)*N13,0.01)","v":0.01},{"$f":"N15*'Model settings'!$D$10","v":1.2},6.6666666666666671E-7,7.9999999999999993E-5]
[null,null,null,"Saleable Bricks",null,15000,"1000 Standard Bricks",null,null,null,null,"Z-factor allowance",{"$f":"M15-N16","v":1771.2537599999998},{"$f":"('Model settings'!J5/100)*N13","v":253.03767999999997},{"$f":"N16*'Model settings'!$D$10","v":30364.521599999996},1.6869178666666665E-2,2.0243014399999999]
[null,null,"Body Fuel",null,"Type","Volume","UoM",null,null,null,null,"Carbon budget allowance",1771.1537599999999,{"$f":"IF(G10=\"Yes\",('Model settings'!K5/100)*N13,0.1)","v":0.1},{"$f":"N17*'Model settings'!$D$10","v":12},6.6666666666666666E-6,8.0000000000000004E-4]
[null,null,null,"Fuel 1","CHARCOAL",1500,"Metric ton",{"$f":"VLOOKUP(E18,'CTax variables'!$D$4:$F$24,2,FALSE)*F18","v":5038.95},null,null,null,"Offsets allowance",1771.05376,{"$f":"H40","v":0.1},{"$f":"N18*'Model settings'!$D$10","v":12},6.6666666666666666E-6,8.0000000000000004E-4]
[null,null,null,"Fuel 2","FINE COAL",12,"Metric ton",{"$f":"VLOOKUP(E19,'CTax variables'!$D$4:$F$24,2,FALSE)*F19","v":21.903599999999997},null,null,null,"Net taxable emissions",{"$f":"M18-N19","v":0},{"$f":"N13-N14-N15-N16-N17-N18","v":1771.05376},{"$f":"N19*'Model settings'!$D$10","v":212526.45120000001},0.11807025066666667,14.16843008]
[null,null,null,"Fuel 3","Please select",0,"Metric ton",{"$f":"VLOOKUP(E20,'CTax variables'!$D$4:$F$24,2,FALSE)*F20","v":0}]
[null,null,"Firing Fuel",null,"Type","Volume","UoM"]
[null,null,null,"Fuel 1","Please select",0,"Metric ton",{"$f":"VLOOKUP(E22,'CTax variables'!$D$27:$F$58,2,FALSE)*F22","v":0}]
[null,null,null,"Fuel 2","Please select",0,"Metric ton",{"$f":"VLOOKUP(E23,'CTax variables'!$D$27:$F$58,2,FALSE)*F23","v":0}]
[null,null,null,"Fuel 3","Please select",0,"Metric ton",{"$f":"VLOOKUP(E24,'CTax variables'!$D$27:$F$58,2,FALSE)*F24","v":0}]
[null,null,"Transport Fuel",null,"Type","Volume","UoM"]
[null,null,null,"Fuel 1","Please select",0,"Metric ton",{"$f":"IF(F26=0,0.1,VLOOKUP(E26,'CTax variables'!$D$62:$F$69,2,FALSE)*F26)","v":0.1},null,"Carbon Tax"]
[null,null,null,"Fuel 2","Please select",0,"Metric ton",{"$f":"VLOOKUP(E27,'CTax variables'!$D$62:$F$69,2,FALSE)*F27","v":0},null,"Carbon Tax exposure",null,null,"Gross direct emissions","Gross taxable emissions","Net taxable emissions","Per 1000 standard bricks"]
[null,null,null,"Fuel 3","Please select",0,"Metric ton",{"$f":"VLOOKUP(E28,'CTax variables'!$D$62:$F$69,2,FALSE)*F28","v":0}]
[null,null,"Electricity",null,"Type","Volume","UoM",null,null,null,"Volume (tCO2e)",null,{"$f":"N10","v":5060.9535999999998},{"$f":"N13","v":5060.7535999999991},{"$f":"N19","v":1771.05376},{"$f":"P19","v":0.11807025066666667}]
[null,null,null,"Consumption","Electricity",0,"MWh",{"$f":"F30*'Model settings'!D8","v":0},null,null,"Costs (ZAR)",null,{"$f":"O10","v":607314.43200000003},{"$f":"O13","v":607290.43199999991},{"$f":"O19","v":212526.45120000001},{"$f":"Q19","v":14.16843008}]
[]
[null,"Tax compensation",null,null,null,null,null,null,null,"Sector Benchmark"]
[null,null,"Export exposure",null,null,"Volume","UoM",null,null,"Components",null,null,"Total deviation","Deviation per 1000 Standard bricks",null,"% Deviation"]
[null,null,null,"Bricks exported",null,100000,"1000 Standard Bricks",null,null,null,"Carbon Tax (Z)",null,0,0,0,0]
[null,null,"Sequestration Compensation",null,null,"Volume","UoM"]
[null,null,null,"Fuel 1","please select",0,"Metric ton",{"$f":"IF(F36=0,0.1,VLOOKUP(E36,'CTax variables'!$D$72:$F$75,2,FALSE)*F36)","v":0.1}]
[null,null,null,"Fuel 2","please select",0,"Metric ton",{"$f":"VLOOKUP(E37,'CTax variables'!$D$72:$F$75,2,FALSE)*F37","v":0}]
[null,null,null,"Fuel 3","please select",0,"Metric ton",{"$f":"VLOOKUP(E38,'CTax variables'!$D$72:$F$75,2,FALSE)*F38","v":0}]
[null,null,"Carbon Tax Offsets",null,"Type","Volume","UoM"]
[null,null,null,"Offsets applied",null,0,"tCO2e",{"$f":"IF(F40=0,0.1,F40)","v":0.1}]

{"sheet":"Energy Consumption model","index":2,"n_rows":40,"n_cols":14,"rows_kept":40,"cut":false,"hidden":false,"merged":[]}
[]
[null,"Clay Brick Energy Consumption Model"]
[]
[null,"Activity level",null,null,null,null,null,null,null,"Green Bricks",null,null,null,"Energy profile (GJ/1000 Standard Bricks)"]
[null,null,"Production",null,null,"Volume","UoM"]
[null,null,null,"Green Bricks",null,{"$f":"'Carbon Tax model'!F15","v":20000},"1000 Standard Bricks"]
[null,null,null,"Saleable Bricks",null,{"$f":"'Carbon Tax model'!F16","v":15000},"1000 Standard Bricks"]
[]
[null,null,"Body Fuel",null,"Type","Volume (Metric ton)","Energy (GJ/Metric ton) or CV (MJ/kg)"]
[null,null,null,"Fuel 1","Please select",100,3,{"$f":"F10*G10","v":300}]
[null,null,null,"Fuel 2","Please select",0,0,{"$f":"F11*G11","v":0}]
[null,null,null,"Fuel 3","Please select",0,0,0]
[null,null,null,null,null,null,null,{"$f":"SUM(H10:H12)","v":300},"t"]
[null,null,"Firing Fuel",null,"Type","Volume (Metric ton)","Energy (GJ/Metric ton) or CV (MJ/kg)"]
[null,null,null,"Fuel 1","Please select",200,4,{"$f":"F15*G15","v":800},null,null,null,"Green bricks","GJ/1k Standard Bricks"]
[null,null,null,"Fuel 2","Please select",0,0,{"$f":"F16*G16","v":0},null,null,null,"Body energy",{"$f":"H13/$F$6","v":1.4999999999999999E-2}]
[null,null,null,"Fuel 3","Please select",0,0,0,null,null,null,"Firing energy",{"$f":"H18/$F$6","v":0.04}]
[null,null,null,null,null,null,null,{"$f":"SUM(H15:H17)","v":800},"t",null,null,"Transport energy",{"$f":"H23/$F$6","v":2.0250000000000001E-2}]
[null,null,"Transport Fuel",null,"Type","Volume (Metric ton)","Energy (GJ/Metric ton) or CV (MJ/kg)",null,null,null,null,"Electricity",{"$f":"H25/$F$6","v":2.16E-3}]
[null,null,null,"Fuel 1","Please select",45,9,{"$f":"F20*G20","v":405},null,null,null,"Total",{"$f":"H26/$F$6","v":7.7410000000000007E-2}]
[null,null,null,"Fuel 2","Please select",0,0,{"$f":"F21*G21","v":0}]
[null,null,null,"Fuel 3","Please select",0,0,0]
[null,null,null,null,null,null,null,{"$f":"SUM(H20:H22)","v":405},"t"]
[null,null,"Electricity",null,"Type","Volume (MWh)","Energy (GJ/MWh)"]
[null,null,null,"Consumption","Electricity",12,3.6,{"$f":"F25*G25","v":43.2},"t"]
[null,null,null,null,null,null,null,{"$f":"H13+H18+H23+H25","v":1548.2},"tt"]
[null,"Energy profile (GJ/1000 Standard Bricks)",null,null,null,null,null,null,null,"Saleable Bricks",null,null,null,"Energy profile (GJ/1000 Standard Bricks)"]
[null,null,null,"Green Brick energy components","Total","Per 1000 Standard bricks","Relative difference to sector benchmark (%)"]
[null,null,null,"Body energy",{"$f":"H13","v":300},{"$f":"M16","v":1.4999999999999999E-2},{"$f":"(F29/$F$33)*$G$33","v":5.5555555555555549E-3},null,null,null,null,"Saleable Bricks","GJ/1k Standard Bricks"]
[null,null,null,"Firing energy",{"$f":"H18","v":800},{"$f":"M17","v":0.04},{"$f":"(F30/$F$33)*$G$33","v":1.4814814814814815E-2},null,null,null,null,"Body energy",{"$f":"H13/$F$7","v":0.02}]
[null,null,null,"Transport energy",{"$f":"H23","v":405},{"$f":"M18","v":2.0250000000000001E-2},7.4999999999999997E-3,null,null,null,null,"Firing energy",{"$f":"H18/$F$7","v":5.3333333333333337E-2}]
[null,null,null,"Electricity",{"$f":"H25","v":43.2},{"$f":"M19","v":2.16E-3},7.9999999999999993E-4,null,null,null,null,"Transport energy",{"$f":"H23/$F$7","v":2.7E-2}]
[null,null,null,"Total",{"$f":"H26","v":1548.2},{"$f":"M20","v":7.7410000000000007E-2},{"$f":"F33/'Model settings'!F13","v":2.867037037037037E-2},null,null,null,null,"Electricity",{"$f":"H25/$F$7","v":2.8800000000000002E-3}]
[null,null,null,null,null,null,null,null,null,null,null,"Total",{"$f":"H26/$F$7","v":0.10321333333333334}]
[null,null,null,"Saleable Brick energy components","Total","Per 1000 Standard bricks","Relative difference to sector benchmark (%)"]
[null,null,null,"Body energy",{"$f":"E29","v":300},{"$f":"M30","v":0.02},{"$f":"(F36/$F$40)*$G$40","v":7.4074074074074068E-3}]
[null,null,null,"Firing energy",{"$f":"E30","v":800},{"$f":"M31","v":5.3333333333333337E-2},{"$f":"(F37/$F$33)*$G$33","v":1.9753086419753086E-2}]
[null,null,null,"Transport energy",405,{"$f":"M32","v":2.7E-2},0.01]
[null,null,null,"Electricity",43.2,{"$f":"M33","v":2.8800000000000002E-3},1.0666666666666667E-3]
[null,null,null,"Total",1548.2,{"$f":"M34","v":0.10321333333333334},{"$f":"F40/'Model settings'!F13","v":3.8227160493827163E-2}]

{"sheet":"Model settings","index":3,"n_rows":56,"n_cols":13,"rows_kept":56,"cut":false,"hidden":true,"merged":[]}
[]
[]
[null,"Schedule 2"]
[null,null,null,null,"Sector","Basic tax-free allowance for fossil fuel combustion emissions %","Basic tax-free allowance for process emissions %","Fugitive emissions allowance %","Trade exposure allowance %","Z-factor allowance %","Carbon budget allowance %","Offsets allowance %","Maximum total allowances %"]
[null,null,"Fuel combustion","Energy Industries","Construction",60,0,0,10,5,5,10,90]
[]
[null,"Electricity emission factor",null,null,null,"GJ/Mwh"]
[null,null,null,1.01,"tCO2e/MWh",3.6,"GJ/Mwh"]
[null,"Tax rate"]
[null,null,"Rate",120,"ZAR/TCO2e"]
[]
[null,"Clay brick energy intensity",null,null,null,"GJ/1000 Standard Bricks",null,"Source: LCA"]
[null,null,null,null,null,2.7]
[]
[null,"Clay brick Carbon intensity",null,null,null,"TCO2e/1000 Standard Bricks",null,"Source: ?????"]
[]
[]
[]
[null,"Tax components"]
[null,null,"Gross direct emissions"]
[null,null,"Transport emissions"]
[null,null,"Sequestration of emissions"]
[null,null,"Gross taxable emissions"]
[null,null,"Basic tax-free allowance for fossil fuel combustion emissions"]
[null,null,"Trade exposure allowance"]
[null,null,"Z-factor allowance"]
[null,null,"Carbon budget allowance"]
[null,null,"Offsets allowance"]
[null,null,"Maximum total allowances"]
[null,null,"Net taxable emissions"]
[]
[]
[null,"Provinces"]
[null,null,"Please select"]
[null,null,"Eastern Cape"]
[null,null,"Free State"]
[null,null,"Gauteng"]
[null,null,"KwaZulu-Natal"]
[null,null,"Limpopo"]
[null,null,"Mpumalanga"]
[null,null,"Northern Cape"]
[null,null,"North West"]
[null,null,"Western Cape"]
[]
[null,"Firing technologies"]
[null,null,"Please select"]
[null,null,"Clamp"]
[null,null,"Hoffman"]
[null,null,"Tunnel"]
[null,null,"TVA"]
[null,null,"VSBK"]
[]
[null,"Y/N"]
[null,null,"Please select"]
[null,null,"Yes"]
[null,null,"No"]

{"sheet":"CTax variables","index":4,"n_rows":75,"n_cols":6,"rows_kept":75,"cut":false,"hidden":true,"merged":[]}
[]
[null,"STATIONARY SOURCE"]
[null,null,"TYPE","FUEL TYPE","GHG EMISSION FACTOR (CO2e) PER TONNE","UoM"]
[null,null,"Body Fuel","Please select",0,"Metric ton"]
[null,null,"Body Fuel","ANTHRACITE",2.6371000000000002,"Metric ton"]
[null,null,"Body Fuel","BITUMEN",3.2541000000000002,"Metric ton"]
[null,null,"Body Fuel","BROWN COAL BRIQUETTES",2.0278999999999998,"Metric ton"]
[null,null,"Body Fuel","CHARCOAL",3.3593000000000002,"Metric ton"]
[null,null,"Body Fuel","COAL TAR",2.2726999999999999,"Metric ton"]
[null,null,"Body Fuel","COAL SLURRY",{"$f":"E18","v":1.8252999999999999},"Metric ton"]
[null,null,"Body Fuel","COKE OVEN COKE AND LIGNITE COKE",3.0306000000000002,"Metric ton"]
["x",null,"Body Fuel","FILTER CAKE",{"$f":"E6","v":3.2541000000000002},"Metric ton"]
["x",null,"Body Fuel","FINE COAL",{"$f":"E18","v":1.8252999999999999},"Metric ton"]
[null,null,"Body Fuel","FLY ASH",{"$f":"E5*0.42","v":1.1075820000000001},"Metric ton"]
[null,null,"Body Fuel","LIGNITE",1.2075,"Metric ton"]
[null,null,"Body Fuel","MUNICIPAL WASTES (BIOMASS FRACTION)",1.1817,"Metric ton"]
[null,null,"Body Fuel","MUNICIPAL WASTES (NON BIOMASS FRACTION)",0.93569999999999998,"Metric ton"]
[null,null,"Body Fuel","OTHER BITUMINOUS COAL",1.8252999999999999,"Metric ton"]
[null,null,"Body Fuel","OTHER PRIMARY SOLID BIOMASS",1.1817,"Metric ton"]
[null,null,"Body Fuel","PEAT",1.0390999999999999,"Metric ton"]
[null,null,"Body Fuel","PETROLEUM COKE",3.1768000000000001,"Metric ton"]
["x",null,"Body Fuel","SPIRAL DUFF",{"$f":"E9","v":2.2726999999999999},"Metric ton"]
[null,null,"Body Fuel","SUB-BITUMINOUS COAL",1.8541000000000001,"Metric ton"]
[null,null,"Body Fuel","WOOD/WOOD WASTE",1.7764,"Metric ton"]
[]
[null,null,"TYPE","FUEL TYPE","GHG EMISSION FACTOR (CO2e) PER TONNE","UoM"]
[null,null,"Firing Fuel","Please select",0,"Metric ton"]
[null,null,"Firing Fuel","ANTHRACITE",2.6371000000000002,"Metric ton"]
[null,null,"Firing Fuel","BITUMEN",3.2541000000000002,"Metric ton"]
[null,null,"Firing Fuel","BIODIESEL",1.9182999999999999,"Metric ton"]
[null,null,"Firing Fuel","BROWN COAL BRIQUETTES",2.0278999999999998,"Metric ton"]
[null,null,"Firing Fuel","CHARCOAL",3.3593000000000002,"Metric ton"]
[null,null,"Firing Fuel","COAL TAR",2.2726999999999999,"Metric ton"]
[null,null,"Firing Fuel","COKE OVEN COKE AND LIGNITE COKE",3.0306000000000002,"Metric ton"]
[null,null,"Firing Fuel","FILTER CAKE",{"$f":"E29","v":3.2541000000000002},"Metric ton"]
[null,null,"Firing Fuel","FINE COAL",{"$f":"E42","v":2.7545000000000002},"Metric ton"]
[null,null,"Firing Fuel","FLY ASH",{"$f":"E28*0.42","v":1.1075820000000001},"Metric ton"]
[null,null,"Firing Fuel","CRUDE OIL",3.2214,"Metric ton"]
[null,null,"Firing Fuel","DIESEL",2.8325999999999998,"Metric ton"]
[null,null,"Firing Fuel","ETHANE",2.8607,"Metric ton"]
[null,null,"Firing Fuel","GAS WORKS GAS",1.7202999999999999,"Metric ton"]
[null,null,"Firing Fuel","LANDFILL GAS",2.7545000000000002,"Metric ton"]
[null,null,"Firing Fuel","LIGNITE",1.2075,"Metric ton"]
[null,null,"Firing Fuel","LIQUEFIED PETROLEUM GASES",1.6861999999999999,"Metric ton"]
[null,null,"Firing Fuel","MUNICIPAL WASTES (BIOMASS FRACTION)",1.1817,"Metric ton"]
[null,null,"Firing Fuel","MUNICIPAL WASTES (NON BIOMASS FRACTION)",0.93569999999999998,"Metric ton"]
[null,null,"Firing Fuel","NAPHTHA",3.2906,"Metric ton"]
[null,null,"Firing Fuel","NATURAL GAS",2.3022999999999998,"Metric ton"]
[null,null,"Firing Fuel","OTHER BITUMINOUS COAL",1.8252999999999999,"Metric ton"]
[null,null,"Firing Fuel","OTHER PETROLEUM PRODUCTS",2.9565999999999999,"Metric ton"]
[null,null,"Firing Fuel","OTHER PRIMARY SOLID BIOMASS",1.1817,"Metric ton"]
[null,null,"Firing Fuel","PEAT",1.0390999999999999,"Metric ton"]
[null,null,"Firing Fuel","PETROL",2.3784999999999998,"Metric ton"]
[null,null,"Firing Fuel","PETROLEUM COKE",3.1768000000000001,"Metric ton"]
[null,null,"Firing Fuel","SPIRAL DUFF",{"$f":"E42","v":2.7545000000000002},"Metric ton"]
[null,null,"Firing Fuel","SLUDGE GAS",2.7545000000000002,"Metric ton"]
[null,null,"Firing Fuel","SUB-BITUMINOUS COAL",1.8541000000000001,"Metric ton"]
[null,null,"Firing Fuel","WOOD/WOOD WASTE",1.7764,"Metric ton"]
[]
[null,"MOBILE SOURCES"]
[null,null,"TYPE","FUEL TYPE","GHG EMISSION FACTOR (CO2e) PER TONNE","UoM"]
[null,null,"Transport Fuel","Please select",0,"Metric ton"]
[null,null,"Transport Fuel","BIODIESEL",1.9182999999999999,"Metric ton"]
[null,null,"Transport Fuel","DIESEL",2.8706,"Metric ton"]
[null,null,"Transport Fuel","LIQUEFIED PETROLEUM GASES",1.7243999999999999,"Metric ton"]
[null,null,"Transport Fuel","NATURAL GAS",2.4232999999999998,"Metric ton"]
[null,null,"Transport Fuel","PETROL-LOW MILEAGE LDV",2.4304999999999999,"Metric ton"]
[null,null,"Transport Fuel","PETROL-OXIDATION CATALYST",2.4706999999999999,"Metric ton"]
[null,null,"Transport Fuel","PETROL-UNCONTROLLED",2.4283999999999999,"Metric ton"]
[]
[null,null,"TYPE","FUEL TYPE","GHG EMISSION FACTOR (CO2e) PER TONNE","UoM"]
[null,null,"Sustainable Fuel","please select",0,"Metric ton"]
[null,null,"Sustainable Fuel","BIODIESEL",1.9182999999999999,"Metric ton"]
[null,null,"Sustainable Fuel","CHARCOAL",3.3593000000000002,"Metric ton"]
[null,null,"Sustainable Fuel","WOOD/WOOD WASTE",1.7764,"Metric ton"]

{"sheet":"Energy variables","index":5,"n_rows":67,"n_cols":6,"rows_kept":67,"cut":false,"hidden":true,"merged":[]}
[]
[null,"STATIONARY SOURCE"]
[null,null,"TYPE","FUEL TYPE","ENERGY CONTENT","UoM"]
[null,null,"Body Fuel","Please select",0,"GJ/Metric ton"]
[null,null,"Body Fuel","ANTHRACITE",{"$f":"(29.3+33.5)/2","v":31.4},"GJ/Metric ton"]
[null,null,"Body Fuel","BITUMEN",{"$f":"(29.3+33.5)/2","v":31.4},"GJ/Metric ton"]
[null,null,"Body Fuel","BROWN COAL BRIQUETTES",{"$f":"(29.3+33.5)/2","v":31.4},"GJ/Metric ton"]
[null,null,"Body Fuel","CHARCOAL",30,"GJ/Metric ton"]
[null,null,"Body Fuel","COAL TAR",{"$f":"(29.3+33.5)/2","v":31.4},"GJ/Metric ton"]
[null,null,"Body Fuel","COAL SLURRY",{"$f":"E21/2","v":15.7},"GJ/Metric ton"]
[null,null,"Body Fuel","COKE OVEN COKE AND LIGNITE COKE",{"$f":"(29.3+33.5)/2","v":31.4},"GJ/Metric ton"]
[null,null,"Body Fuel","FILTER CAKE",{"$f":"E6","v":31.4},"GJ/Metric ton"]
[null,null,"Body Fuel","FINE COAL",{"$f":"E18","v":31.4},"GJ/Metric ton"]
[null,null,"Body Fuel","FLY ASH",{"$f":"E5/2","v":15.7},"GJ/Metric ton"]
[null,null,"Body Fuel","LIGNITE",{"$f":"(29.3+33.5)/2","v":31.4},"GJ/Metric ton"]
[null,null,"Body Fuel","MUNICIPAL WASTES (BIOMASS FRACTION)",18.5,"GJ/Metric ton"]
[null,null,"Body Fuel","MUNICIPAL WASTES (NON BIOMASS FRACTION)",32.564,"GJ/Metric ton"]
[null,null,"Body Fuel","OTHER BITUMINOUS COAL",{"$f":"(29.3+33.5)/2","v":31.4},"GJ/Metric ton"]
[null,null,"Body Fuel","OTHER PRIMARY SOLID BIOMASS",18.5,"GJ/Metric ton"]
[null,null,"Body Fuel","PEAT",13,"GJ/Metric ton"]
[null,null,"Body Fuel","PETROLEUM COKE",{"$f":"(29.3+33.5)/2","v":31.4},"GJ/Metric ton"]
[null,null,"Body Fuel","SPIRAL DUFF",{"$f":"E9","v":31.4},"GJ/Metric ton"]
[null,null,"Body Fuel","SUB-BITUMINOUS COAL",{"$f":"(29.3+33.5)/2","v":31.4},"GJ/Metric ton"]
[null,null,"Body Fuel","WOOD/WOOD WASTE",{"$f":"(16+21)/2","v":18.5},"GJ/Metric ton"]
[]
[null,null,"TYPE","FUEL TYPE","ENERGY CONTENT","UoM"]
[null,null,"Firing Fuel","Please select",0,"GJ/Metric ton"]
[null,null,"Firing Fuel","ANTHRACITE",{"$f":"(29.3+33.5)/2","v":31.4},"GJ/Metric ton"]
[null,null,"Firing Fuel","BITUMEN",{"$f":"(29.3+33.5)/2","v":31.4},"GJ/Metric ton"]
[null,null,"Firing Fuel","BIODIESEL",37.799999999999997,"GJ/Metric ton"]
[null,null,"Firing Fuel","BROWN COAL BRIQUETTES",{"$f":"(29.3+33.5)/2","v":31.4},"GJ/Metric ton"]
[null,null,"Firing Fuel","CHARCOAL",30,"GJ/Metric ton"]
[null,null,"Firing Fuel","COAL TAR",{"$f":"(29.3+33.5)/2","v":31.4},"GJ/Metric ton"]
[null,null,"Firing Fuel","COKE OVEN COKE AND LIGNITE COKE",{"$f":"(29.3+33.5)/2","v":31.4},"GJ/Metric ton"]
[null,null,"Firing Fuel","FILTER CAKE",{"$f":"E29","v":31.4},"GJ/Metric ton"]
[null,null,"Firing Fuel","FINE COAL",{"$f":"E41","v":44},"GJ/Metric ton"]
[null,null,"Firing Fuel","FLY ASH",{"$f":"E28/2","v":15.7},"GJ/Metric ton"]
[null,null,"Firing Fuel","CRUDE OIL",41.868000000000002,"GJ/Metric ton"]
[null,null,"Firing Fuel","DIESEL",48.1,"GJ/Metric ton"]
[null,null,"Firing Fuel","ETHANE",51.9,"GJ/Metric ton"]
[null,null,"Firing Fuel","GAS WORKS GAS",{"$f":"(38+50)/2","v":44},"GJ/Metric ton"]
[null,null,"Firing Fuel","LANDFILL GAS",{"$f":"(38+50)/2","v":44},"GJ/Metric ton"]
[null,null,"Firing Fuel","LIGNITE",{"$f":"(29.3+33.5)/2","v":31.4},"GJ/Metric ton"]
[null,null,"Firing Fuel","LIQUEFIED PETROLEUM GASES",{"$f":"(38+50)/2","v":44},"GJ/Metric ton"]
[null,null,"Firing Fuel","MUNICIPAL WASTES (BIOMASS FRACTION)",18.5,"GJ/Metric ton"]
[null,null,"Firing Fuel","MUNICIPAL WASTES (NON BIOMASS FRACTION)",32.564,"GJ/Metric ton"]
[null,null,"Firing Fuel","NAPHTHA",41.868000000000002,"GJ/Metric ton"]
[null,null,"Firing Fuel","NATURAL GAS",{"$f":"(38+50)/2","v":44},"GJ/Metric ton"]
[null,null,"Firing Fuel","OTHER BITUMINOUS COAL",{"$f":"(29.3+33.5)/2","v":31.4},"GJ/Metric ton"]
[null,null,"Firing Fuel","OTHER PETROLEUM PRODUCTS",41.868000000000002,"GJ/Metric ton"]
[null,null,"Firing Fuel","OTHER PRIMARY SOLID BIOMASS",18.5,"GJ/Metric ton"]
[null,null,"Firing Fuel","PEAT",{"$f":"(10+16)/2","v":13},"GJ/Metric ton"]
[null,null,"Firing Fuel","PETROL",{"$f":"(45+48.3)/2","v":46.65},"GJ/Metric ton"]
[null,null,"Firing Fuel","PETROLEUM COKE",{"$f":"(29.3+33.5)/2","v":31.4},"GJ/Metric ton"]
[null,null,"Firing Fuel","SLUDGE GAS",{"$f":"(38+50)/2","v":44},"GJ/Metric ton"]
[null,null,"Firing Fuel","SUB-BITUMINOUS COAL",{"$f":"(29.3+33.5)/2","v":31.4},"GJ/Metric ton"]
[null,null,"Firing Fuel","WOOD/WOOD WASTE",18.5,"GJ/Metric ton"]
[null,"MOBILE SOURCES"]
[null,null,"TYPE","FUEL TYPE","ENERGY CONTENT","UoM"]
[null,null,"Transport Fuel","Please select",0,"GJ/Metric ton"]
[null,null,"Transport Fuel","BIODIESEL",37.799999999999997,"GJ/Metric ton"]
[null,null,"Transport Fuel","DIESEL",48.1,"GJ/Metric ton"]
[null,null,"Transport Fuel","LIQUEFIED PETROLEUM GASES",{"$f":"(38+50)/2","v":44},"GJ/Metric ton"]
[null,null,"Transport Fuel","NATURAL GAS",{"$f":"(38+50)/2","v":44},"GJ/Metric ton"]
[null,null,"Transport Fuel","PETROL-LOW MILEAGE LDV",{"$f":"(45+48.3)/2","v":46.65},"GJ/Metric ton"]
[null,null,"Transport Fuel","PETROL-OXIDATION CATALYST",{"$f":"(45+48.3)/2","v":46.65},"GJ/Metric ton"]
[null,null,"Transport Fuel","PETROL-UNCONTROLLED",{"$f":"(45+48.3)/2","v":46.65},"GJ/Metric ton"]

{"sheet":"Schedule 1","index":6,"n_rows":271,"n_cols":9,"rows_kept":271,"cut":false,"hidden":true,"merged":[]}
[]
[null,"SCHEDULE 1 Carbon Tax draft Bill"]
[]
[]
[null,null,"TABLE","TYPE","CATEGORY",null,"FUEL TYPE","GHG EMISSION FACTOR","UoM"]
[null,6,"Table 1","Energy Combustion Emission Factors","STATIONARY SOURCE CATEGORY",null,"ANTHRACITE",2.6371000000000002,"(CO2e) PER TONNE"]
[null,7,"Table 1","Energy Combustion Emission Factors","STATIONARY SOURCE CATEGORY",null,"AVIATION GASOLINE",2.4095,"(CO2e) PER TONNE"]
[null,8,"Table 1","Energy Combustion Emission Factors","STATIONARY SOURCE CATEGORY",null,"BIODIESEL",1.9182999999999999,"(CO2e) PER TONNE"]
[null,9,"Table 1","Energy Combustion Emission Factors","STATIONARY SOURCE CATEGORY",null,"BIOGASOLINE",1.9182999999999999,"(CO2e) PER TONNE"]
[null,10,"Table 1","Energy Combustion Emission Factors","STATIONARY SOURCE CATEGORY",null,"BITUMEN",3.2541000000000002,"(CO2e) PER TONNE"]
[null,11,"Table 1","Energy Combustion Emission Factors","STATIONARY SOURCE CATEGORY",null,"BLAST FURNACE GAS",0.64229999999999998,"(CO2e) PER TONNE"]
[null,12,"Table 1","Energy Combustion Emission Factors","STATIONARY SOURCE CATEGORY",null,"BROWN COAL BRIQUETTES",2.0278999999999998,"(CO2e) PER TONNE"]
[null,13,"Table 1","Energy Combustion Emission Factors","STATIONARY SOURCE CATEGORY",null,"CHARCOAL",3.3593000000000002,"(CO2e) PER TONNE"]
[null,14,"Table 1","Energy Combustion Emission Factors","STATIONARY SOURCE CATEGORY",null,"COAL TAR",2.2726999999999999,"(CO2e) PER TONNE"]
[null,15,"Table 1","Energy Combustion Emission Factors","STATIONARY SOURCE CATEGORY",null,"COKE OVEN COKE AND LIGNITE COKE",3.0306000000000002,"(CO2e) PER TONNE"]
[null,16,"Table 1","Energy Combustion Emission Factors","STATIONARY SOURCE CATEGORY",null,"COKE OVEN GAS",1.7202999999999999,"(CO2e) PER TONNE"]
[null,17,"Table 1","Energy Combustion Emission Factors","STATIONARY SOURCE CATEGORY",null,"COKING COAL",2.0914999999999999,"(CO2e) PER TONNE"]
[null,18,"Table 1","Energy Combustion Emission Factors","STATIONARY SOURCE CATEGORY",null,"CRUDE OIL",3.2214,"(CO2e) PER TONNE"]
[null,19,"Table 1","Energy Combustion Emission Factors","STATIONARY SOURCE CATEGORY",null,"DIESEL",2.8325999999999998,"(CO2e) PER TONNE"]
[null,20,"Table 1","Energy Combustion Emission Factors","STATIONARY SOURCE CATEGORY",null,"ETHANE",2.8607,"(CO2e) PER TONNE"]
[null,21,"Table 1","Energy Combustion Emission Factors","STATIONARY SOURCE CATEGORY",null,"GAS COKE",1.8520000000000001,"(CO2e) PER TONNE"]
[null,22,"Table 1","Energy Combustion Emission Factors","STATIONARY SOURCE CATEGORY",null,"GAS WORKS GAS",1.7202999999999999,"(CO2e) PER TONNE"]
[null,23,"Table 1","Energy Combustion Emission Factors","STATIONARY SOURCE CATEGORY",null,"INDUSTRIAL WASTES",null,"(CO2e) PER TONNE"]
[null,24,"Table 1","Energy Combustion Emission Factors","STATIONARY SOURCE CATEGORY",null,"JET GASOLINE",2.4095,"(CO2e) PER TONNE"]
[null,25,"Table 1","Energy Combustion Emission Factors","STATIONARY SOURCE CATEGORY",null,"JET KEROSENE",2.4609000000000001,"(CO2e) PER TONNE"]
[null,26,"Table 1","Energy Combustion Emission Factors","STATIONARY SOURCE CATEGORY",null,"LANDFILL GAS",2.7545000000000002,"(CO2e) PER TONNE"]
[null,27,"Table 1","Energy Combustion Emission Factors","STATIONARY SOURCE CATEGORY",null,"LIGNITE",1.2075,"(CO2e) PER TONNE"]
[null,28,"Table 1","Energy Combustion Emission Factors","STATIONARY SOURCE CATEGORY",null,"LIQUEFIED PETROLEUM GASES",1.6861999999999999,"(CO2e) PER TONNE"]
[null,29,"Table 1","Energy Combustion Emission Factors","STATIONARY SOURCE CATEGORY",null,"LUBRICANTS",2.9565999999999999,"(CO2e) PER TONNE"]
[null,30,"Table 1","Energy Combustion Emission Factors","STATIONARY SOURCE CATEGORY",null,"MUNICIPAL WASTES (BIOMASS FRACTION)",1.1817,"(CO2e) PER TONNE"]
[null,31,"Table 1","Energy Combustion Emission Factors","STATIONARY SOURCE CATEGORY",null,"MUNICIPAL WASTES (NON BIOMASS FRACTION)",0.93569999999999998,"(CO2e) PER TONNE"]
[null,32,"Table 1","Energy Combustion Emission Factors","STATIONARY SOURCE CATEGORY",null,"NAPHTHA",3.2906,"(CO2e) PER TONNE"]
[null,33,"Table 1","Energy Combustion Emission Factors","STATIONARY SOURCE CATEGORY",null,"NATURAL GAS",2.3022999999999998,"(CO2e) PER TONNE"]
[null,34,"Table 1","Energy Combustion Emission Factors","STATIONARY SOURCE CATEGORY",null,"NATURAL GAS LIQUIDS",2.6423000000000001,"(CO2e) PER TONNE"]
[null,35,"Table 1","Energy Combustion Emission Factors","STATIONARY SOURCE CATEGORY",null,"OIL SHALE AND TAR SANDS",0.95650000000000002,"(CO2e) PER TONNE"]
[null,36,"Table 1","Energy Combustion Emission Factors","STATIONARY SOURCE CATEGORY",null,"ORIMULSION",2.1242999999999999,"(CO2e) PER TONNE"]
[null,37,"Table 1","Energy Combustion Emission Factors","STATIONARY SOURCE CATEGORY",null,"OTHER BIOGAS",2.7545000000000002,"(CO2e) PER TONNE"]
[null,38,"Table 1","Energy Combustion Emission Factors","STATIONARY SOURCE CATEGORY",null,"OTHER BITUMINOUS COAL",1.8252999999999999,"(CO2e) PER TONNE"]
[null,39,"Table 1","Energy Combustion Emission Factors","STATIONARY SOURCE CATEGORY",null,"OTHER KEROSENE",2.6694,"(CO2e) PER TONNE"]
[null,40,"Table 1","Energy Combustion Emission Factors","STATIONARY SOURCE CATEGORY",null,"OTHER LIQUID BIOFUELS",2.1878000000000002,"(CO2e) PER TONNE"]
[null,41,"Table 1","Energy Combustion Emission Factors","STATIONARY SOURCE CATEGORY",null,"OTHER PETROLEUM PRODUCTS",2.9565999999999999,"(CO2e) PER TONNE"]
[null,42,"Table 1","Energy Combustion Emission Factors","STATIONARY SOURCE CATEGORY",null,"OTHER PRIMARY SOLID BIOMASS",1.1817,"(CO2e) PER TONNE"]
[null,43,"Table 1","Energy Combustion Emission Factors","STATIONARY SOURCE CATEGORY",null,"OXYGEN STEEL FURNACE GAS",1.2853000000000001,"(CO2e) PER TONNE"]
[null,44,"Table 1","Energy Combustion Emission Factors","STATIONARY SOURCE CATEGORY",null,"PARAFFIN WAXES",2.9565999999999999,"(CO2e) PER TONNE"]
[null,45,"Table 1","Energy Combustion Emission Factors","STATIONARY SOURCE CATEGORY",null,"PATENT FUEL",2.0278999999999998,"(CO2e) PER TONNE"]
[null,46,"Table 1","Energy Combustion Emission Factors","STATIONARY SOURCE CATEGORY",null,"PEAT",1.0390999999999999,"(CO2e) PER TONNE"]
[null,47,"Table 1","Energy Combustion Emission Factors","STATIONARY SOURCE CATEGORY",null,"PETROL",2.3784999999999998,"(CO2e) PER TONNE"]
[null,48,"Table 1","Energy Combustion Emission Factors","STATIONARY SOURCE CATEGORY",null,"PETROLEUM COKE",3.1768000000000001,"(CO2e) PER TONNE"]
[null,49,"Table 1","Energy Combustion Emission Factors","STATIONARY SOURCE CATEGORY",null,"REFINERY FEEDSTOCK",3.1625000000000001,"(CO2e) PER TONNE"]
[null,50,"Table 1","Energy Combustion Emission Factors","STATIONARY SOURCE CATEGORY",null,"REFINERY GAS",2.8538000000000001,"(CO2e) PER TONNE"]
[null,51,"Table 1","Energy Combustion Emission Factors","STATIONARY SOURCE CATEGORY",null,"RESIDUAL FUEL OIL",3.2301000000000002,"(CO2e) PER TONNE"]
[null,52,"Table 1","Energy Combustion Emission Factors","STATIONARY SOURCE CATEGORY",null,"SHALE OIL",2.8020999999999998,"(CO2e) PER TONNE"]
[null,53,"Table 1","Energy Combustion Emission Factors","STATIONARY SOURCE CATEGORY",null,"SLUDGE GAS",2.7545000000000002,"(CO2e) PER TONNE"]
[null,54,"Table 1","Energy Combustion Emission Factors","STATIONARY SOURCE CATEGORY",null,"SUB-BITUMINOUS COAL",1.8541000000000001,"(CO2e) PER TONNE"]
[null,55,"Table 1","Energy Combustion Emission Factors","STATIONARY SOURCE CATEGORY",null,"SULPHITE LYES (BLACK LIQUOR)",1.1323000000000001,"(CO2e) PER TONNE"]
[null,56,"Table 1","Energy Combustion Emission Factors","STATIONARY SOURCE CATEGORY",null,"WASTE OILS",3.0219999999999998,"(CO2e) PER TONNE"]
[null,57,"Table 1","Energy Combustion Emission Factors","STATIONARY SOURCE CATEGORY",null,"WHITE SPIRIT AND SBP",2.9565999999999999,"(CO2e) PER TONNE"]
[null,58,"Table 1","Energy Combustion Emission Factors","STATIONARY SOURCE CATEGORY",null,"WOOD/WOOD WASTE",1.7764,"(CO2e) PER TONNE"]
[null,59,"Table 1","Energy Combustion Emission Factors","NON-STATIONARY / MOBILE SOURCE CATEGORY",null,"AVIATION GASOLINE",2.3976999999999999,"(CO2e) PER TONNE"]
[null,60,"Table 1","Energy Combustion Emission Factors","NON-STATIONARY / MOBILE SOURCE CATEGORY",null,"COMPRESSED NATURAL GAS","N/A","(CO2e) PER TONNE"]
[null,61,"Table 1","Energy Combustion Emission Factors","NON-STATIONARY / MOBILE SOURCE CATEGORY",null,"DIESEL",2.8706,"(CO2e) PER TONNE"]
[null,62,"Table 1","Energy Combustion Emission Factors","NON-STATIONARY / MOBILE SOURCE CATEGORY",null,"DIESEL –OFFROAD",3.1497000000000002,"(CO2e) PER TONNE"]
[null,63,"Table 1","Energy Combustion Emission Factors","NON-STATIONARY / MOBILE SOURCE CATEGORY",null,"DIESEL-RAIL",3.1494,"(CO2e) PER TONNE"]
[null,64,"Table 1","Energy Combustion Emission Factors","NON-STATIONARY / MOBILE SOURCE CATEGORY",null,"JET KEROSENE",2.4731999999999998,"(CO2e) PER TONNE"]
[null,65,"Table 1","Energy Combustion Emission Factors","NON-STATIONARY / MOBILE SOURCE CATEGORY",null,"KEROSENE",2.6694,"(CO2e) PER TONNE"]
[null,66,"Table 1","Energy Combustion Emission Factors","NON-STATIONARY / MOBILE SOURCE CATEGORY",null,"LIQUEFIED NATURAL GASES","N/A","(CO2e) PER TONNE"]
[null,67,"Table 1","Energy Combustion Emission Factors","NON-STATIONARY / MOBILE SOURCE CATEGORY",null,"LIQUEFIED PETROLEUM GASES",1.7243999999999999,"(CO2e) PER TONNE"]
[null,68,"Table 1","Energy Combustion Emission Factors","NON-STATIONARY / MOBILE SOURCE CATEGORY",null,"LUBRICANTS",2.9565999999999999,"(CO2e) PER TONNE"]
[null,69,"Table 1","Energy Combustion Emission Factors","NON-STATIONARY / MOBILE SOURCE CATEGORY",null,"NATURAL GAS",2.4232999999999998,"(CO2e) PER TONNE"]
[null,70,"Table 1","Energy Combustion Emission Factors","NON-STATIONARY / MOBILE SOURCE CATEGORY",null,"OTHER KEROSENE",2.6694,"(CO2e) PER TONNE"]
[null,71,"Table 1","Energy Combustion Emission Factors","NON-STATIONARY / MOBILE SOURCE CATEGORY",null,"OTHER PETROLEUM PRODUCTS",2.9565999999999999,"(CO2e) PER TONNE"]
[null,72,"Table 1","Energy Combustion Emission Factors","NON-STATIONARY / MOBILE SOURCE CATEGORY",null,"PARAFFIN WAXES",2.9565999999999999,"(CO2e) PER TONNE"]
[null,73,"Table 1","Energy Combustion Emission Factors","NON-STATIONARY / MOBILE SOURCE CATEGORY",null,"PETROL-LOW MILEAGE LDV",2.4304999999999999,"(CO2e) PER TONNE"]
[null,74,"Table 1","Energy Combustion Emission Factors","NON-STATIONARY / MOBILE SOURCE CATEGORY",null,"PETROL-OXIDATION CATALYST",2.4706999999999999,"(CO2e) PER TONNE"]
[null,75,"Table 1","Energy Combustion Emission Factors","NON-STATIONARY / MOBILE SOURCE CATEGORY",null,"PETROL-UNCONTROLLED",2.4283999999999999,"(CO2e) PER TONNE"]
[null,76,"Table 1","Energy Combustion Emission Factors","NON-STATIONARY / MOBILE SOURCE CATEGORY",null,"REFINERY GAS",2.8538000000000001,"(CO2e) PER TONNE"]
[null,77,"Table 1","Energy Combustion Emission Factors","NON-STATIONARY / MOBILE SOURCE CATEGORY",null,"RESIDUAL FUEL OIL – WATER",3.2511999999999999,"(CO2e) PER TONNE"]
[null,78,"Table 1","Energy Combustion Emission Factors","NON-STATIONARY / MOBILE SOURCE CATEGORY",null,"SUB-BITUMINOUS COAL – RAIL",1.8545,"(CO2e) PER TONNE"]
[null,79,"Table 1","Energy Combustion Emission Factors","NON-STATIONARY / MOBILE SOURCE CATEGORY",null,"WHITE SPIRIT & SBP",2.9565999999999999,"(CO2e) PER TONNE"]
[null,80,"Table 2","Fugitive Emission Factors","SOLID FUELS (M3 /TONNE)",null,"UNDERGROUND COAL MINING",0.1187,"(CO2e) PER TONNE"]
[null,81,"Table 2","Fugitive Emission Factors","SOLID FUELS (M3 /TONNE)",null,"UNDERGROUND POST-MINING (HANDLING & TRANSPORT)",2.7699999999999999E-2,"(CO2e) PER TONNE"]
[null,82,"Table 2","Fugitive Emission Factors","SOLID FUELS (M3 /TONNE)",null,"SURFACE COAL MINING",0,"(CO2e) PER TONNE"]
[null,83,"Table 2","Fugitive Emission Factors","SOLID FUELS (M3 /TONNE)",null,"SURFACE POST-MINING (STORAGE AND TRANSPORT)",0,"(CO2e) PER TONNE"]
[null,84,"Table 2","Fugitive Emission Factors","OIL AND NATURAL GAS (Gg/ 103M3 TOTAL OIL PRODUCTION)","FLARING AND VENTING","WELL DRILLING",0.85899999999999999,"CO2e (TONNE /M3)"]
[null,85,"Table 2","Fugitive Emission Factors","OIL AND NATURAL GAS (Gg/ 103M3 TOTAL OIL PRODUCTION)","FLARING AND VENTING","WELL TESTING",10.193099999999999,"CO2e (TONNE /M3)"]
[null,86,"Table 2","Fugitive Emission Factors","OIL AND NATURAL GAS (Gg/ 103M3 TOTAL OIL PRODUCTION)","FLARING AND VENTING","WELL SERVICING",2.5318999999999998,"CO2e (TONNE /M3)"]
[null,87,"Table 2","Fugitive Emission Factors","OIL AND NATURAL GAS (Gg/ 103M3 TOTAL OIL PRODUCTION)","GAS PRODUCTION (Gg/ 106M3 TOTAL OIL PRODUCTION)","FUGITIVES (low end)",8.7539999999999996,"CO2e (TONNE /M3)"]
[null,88,"Table 2","Fugitive Emission Factors","OIL AND NATURAL GAS (Gg/ 103M3 TOTAL OIL PRODUCTION)","GAS PRODUCTION (Gg/ 106M3 TOTAL OIL PRODUCTION)","FUGITIVES (high end)",52.981999999999999,"CO2e (TONNE /M3)"]
[null,89,"Table 2","Fugitive Emission Factors","OIL AND NATURAL GAS (Gg/ 103M3 TOTAL OIL PRODUCTION)","GAS PRODUCTION (Gg/ 106M3 TOTAL OIL PRODUCTION)","FLARING",1.2237,"CO2e (TONNE /M3)"]
[null,90,"Table 2","Fugitive Emission Factors","OIL AND NATURAL GAS (Gg/ 103M3 TOTAL OIL PRODUCTION)","GAS PROCESSING (Gg/ 106M3 RAW GAS FEED)","SWEET GAS PLANTS-FUGITIVES (low end)",11.19,"CO2e (TONNE /M3)"]
[null,91,"Table 2","Fugitive Emission Factors","OIL AND NATURAL GAS (Gg/ 103M3 TOTAL OIL PRODUCTION)","GAS PROCESSING (Gg/ 106M3 RAW GAS FEED)","SWEET GAS PLANTS-FUGITIVES (high end)",24.01,"CO2e (TONNE /M3)"]
[null,92,"Table 2","Fugitive Emission Factors","OIL AND NATURAL GAS (Gg/ 103M3 TOTAL OIL PRODUCTION)","GAS PROCESSING (Gg/ 106M3 RAW GAS FEED)","SWEET GAS PLANTS-FLARING",1.835,"CO2e (TONNE /M3)"]
[null,93,"Table 2","Fugitive Emission Factors","OIL AND NATURAL GAS (Gg/ 103M3 TOTAL OIL PRODUCTION)","GAS PROCESSING (Gg/ 106M3 RAW GAS FEED)","SOUR GAS PLANTS-FUGITIVES",2.2389000000000001,"CO2e (TONNE /M3)"]
[null,94,"Table 2","Fugitive Emission Factors","OIL AND NATURAL GAS (Gg/ 103M3 TOTAL OIL PRODUCTION)","GAS PROCESSING (Gg/ 106M3 RAW GAS FEED)","SOUR GAS PLANTS-FLARING",3.6711999999999998,"CO2e (TONNE /M3)"]
[null,95,"Table 2","Fugitive Emission Factors","OIL AND NATURAL GAS (Gg/ 103M3 TOTAL OIL PRODUCTION)","GAS PROCESSING (Gg/ 106M3 RAW GAS FEED)","SOUR GAS PLANTS -RAW CO2 VENTING",63,"CO2e (TONNE /M3)"]
[null,96,"Table 2","Fugitive Emission Factors","OIL AND NATURAL GAS (Gg/ 103M3 TOTAL OIL PRODUCTION)","GAS PROCESSING (Gg/ 106M3 RAW GAS FEED)","DEEP CUT EXTRACTION-FUGITIVES",0.25459999999999999,"CO2e (TONNE /M3)"]
[null,97,"Table 2","Fugitive Emission Factors","OIL AND NATURAL GAS (Gg/ 103M3 TOTAL OIL PRODUCTION)","GAS PROCESSING (Gg/ 106M3 RAW GAS FEED)","DEEP CUT EXTRACTION-FLARING",0.1152,"CO2e (TONNE /M3)"]
[null,98,"Table 2","Fugitive Emission Factors","OIL AND NATURAL GAS (Gg/ 103M3 TOTAL OIL PRODUCTION)","GAS PROCESSING (Gg/ 106M3 RAW GAS FEED)","DEFAULT-FUGITIVES (low end)",3.4620000000000002,"CO2e (TONNE /M3)"]
[null,99,"Table 2","Fugitive Emission Factors","OIL AND NATURAL GAS (Gg/ 103M3 TOTAL OIL PRODUCTION)","GAS PROCESSING (Gg/ 106M3 RAW GAS FEED)","DEFAULT-FUGITIVES (high end)",24.01,"CO2e (TONNE /M3)"]
[null,100,"Table 2","Fugitive Emission Factors","OIL AND NATURAL GAS (Gg/ 103M3 TOTAL OIL PRODUCTION)","GAS PROCESSING (Gg/ 106M3 RAW GAS FEED)","DEFAULT-FLARING",3.0558000000000001,"CO2e (TONNE /M3)"]
[null,101,"Table 2","Fugitive Emission Factors","OIL AND NATURAL GAS (Gg/ 103M3 TOTAL OIL PRODUCTION)","GAS PROCESSING (Gg/ 106M3 RAW GAS FEED)","DEFAULT- RAW CO2 VENTING",40,"CO2e (TONNE /M3)"]
[null,102,"Table 2","Fugitive Emission Factors","OIL AND NATURAL GAS (Gg/ 103M3 TOTAL OIL PRODUCTION)","GAS TRANSMISSION&STORAGE (Gg/ 106M3 MARKETABLE GAS)","TRANSMISSION – FUGITIVES (low end)",1.5188999999999999,"CO2e (TONNE /M3)"]
[null,103,"Table 2","Fugitive Emission Factors","OIL AND NATURAL GAS (Gg/ 103M3 TOTAL OIL PRODUCTION)","GAS TRANSMISSION&STORAGE (Gg/ 106M3 MARKETABLE GAS)","TRANSMISSION – FUGITIVES (high end)",11.040900000000001,"CO2e (TONNE /M3)"]
[null,104,"Table 2","Fugitive Emission Factors","OIL AND NATURAL GAS (Gg/ 103M3 TOTAL OIL PRODUCTION)","GAS TRANSMISSION&STORAGE (Gg/ 106M3 MARKETABLE GAS)","TRANSMISSION – VENTING (low end)",1.0150999999999999,"CO2e (TONNE /M3)"]
[null,105,"Table 2","Fugitive Emission Factors","OIL AND NATURAL GAS (Gg/ 103M3 TOTAL OIL PRODUCTION)","GAS TRANSMISSION&STORAGE (Gg/ 106M3 MARKETABLE GAS)","TRANSMISSION – VENTING (high end)",7.3631000000000002,"CO2e (TONNE /M3)"]
[null,106,"Table 2","Fugitive Emission Factors","OIL AND NATURAL GAS (Gg/ 103M3 TOTAL OIL PRODUCTION)","GAS TRANSMISSION&STORAGE (Gg/ 106M3 MARKETABLE GAS)","STORAGE",0.57509999999999994,"CO2e (TONNE /M3)"]
[null,107,"Table 2","Fugitive Emission Factors","OIL AND NATURAL GAS (Gg/ 103M3 TOTAL OIL PRODUCTION)","GAS DISTRIBUTION (Gg/ 106M3 OF UTILITY SALES)","ALL",25.350999999999999,"CO2e (TONNE /M3)"]
[null,108,"Table 2","Fugitive Emission Factors","OIL AND NATURAL GAS (Gg/ 103M3 TOTAL OIL PRODUCTION)","NATURAL GAS LIQUIDS TRANSPORT (Gg/ 103M3 CONDENSATE AND PENTANES PLUS)","CONDENSATE",2.5371999999999999,"CO2e (TONNE /M3)"]
[null,109,"Table 2","Fugitive Emission Factors","OIL AND NATURAL GAS (Gg/ 103M3 TOTAL OIL PRODUCTION)","NATURAL GAS LIQUIDS TRANSPORT (Gg/ 103M3 CONDENSATE AND PENTANES PLUS)","LIQUEFIED PETROLEUM GAS (Gg/ 103M3 LPG)",0.43070000000000003,"CO2e (TONNE /M3)"]
[null,110,"Table 2","Fugitive Emission Factors","OIL AND NATURAL GAS (Gg/ 103M3 TOTAL OIL PRODUCTION)","NATURAL GAS LIQUIDS TRANSPORT (Gg/ 103M3 CONDENSATE AND PENTANES PLUS)","LIQUEFIED NATURAL GAS (Gg/ 106M3 MARKETABLE GAS)","N/A","CO2e (TONNE /M3)"]
[null,111,"Table 2","Fugitive Emission Factors","OIL AND NATURAL GAS (Gg/ 103M3 TOTAL OIL PRODUCTION)","OIL PRODUCTION (Gg/ 103M3 CONVENTIONAL OIL PRODUCTION)","CONVENTIONAL OIL-FUGITIVES (ONSHORE) (low end)",3.4599999999999999E-2,"CO2e (TONNE /M3)"]
[null,112,"Table 2","Fugitive Emission Factors","OIL AND NATURAL GAS (Gg/ 103M3 TOTAL OIL PRODUCTION)","OIL PRODUCTION (Gg/ 103M3 CONVENTIONAL OIL PRODUCTION)","CONVENTIONAL OIL-FUGITIVES (ONSHORE) (high end)",83.06,"CO2e (TONNE /M3)"]
[null,113,"Table 2","Fugitive Emission Factors","OIL AND NATURAL GAS (Gg/ 103M3 TOTAL OIL PRODUCTION)","OIL PRODUCTION (Gg/ 103M3 CONVENTIONAL OIL PRODUCTION)","CONVENTIONAL OIL-FUGITIVES(OFFSHORE)",1.3599999999999999E-2,"CO2e (TONNE /M3)"]
[null,114,"Table 2","Fugitive Emission Factors","OIL AND NATURAL GAS (Gg/ 103M3 TOTAL OIL PRODUCTION)","OIL PRODUCTION (Gg/ 103M3 CONVENTIONAL OIL PRODUCTION)","CONVENTIONAL OIL-VENTING",16.655000000000001,"CO2e (TONNE /M3)"]
[null,115,"Table 2","Fugitive Emission Factors","OIL AND NATURAL GAS (Gg/ 103M3 TOTAL OIL PRODUCTION)","OIL PRODUCTION (Gg/ 103M3 CONVENTIONAL OIL PRODUCTION)","CONVENTIONAL OIL-FLARING",41.764400000000002,"CO2e (TONNE /M3)"]
[null,116,"Table 2","Fugitive Emission Factors","OIL AND NATURAL GAS (Gg/ 103M3 TOTAL OIL PRODUCTION)","OIL PRODUCTION (Gg/ 103M3 HEAVY OIL PRODUCTION)","HEAVY OIL/COLD BITUMEN – FUGITIVES",182.24,"CO2e (TONNE /M3)"]
[null,117,"Table 2","Fugitive Emission Factors","OIL AND NATURAL GAS (Gg/ 103M3 TOTAL OIL PRODUCTION)","OIL PRODUCTION (Gg/ 103M3 HEAVY OIL PRODUCTION)","HEAVY OIL/COLD BITUMEN – VENTING",396.3,"CO2e (TONNE /M3)"]
[null,118,"Table 2","Fugitive Emission Factors","OIL AND NATURAL GAS (Gg/ 103M3 TOTAL OIL PRODUCTION)","OIL PRODUCTION (Gg/ 103M3 HEAVY OIL PRODUCTION)","HEAVY OIL/COLD BITUMEN – FLARING",25.356200000000001,"CO2e (TONNE /M3)"]
[null,119,"Table 2","Fugitive Emission Factors","OIL AND NATURAL GAS (Gg/ 103M3 TOTAL OIL PRODUCTION)","OIL PRODUCTION (Gg/ 103M3 THERMAL BITUMEN PRODUCTION)","THERMAL OIL PRODUCTION - FUGITIVES",4.1689999999999996,"CO2e (TONNE /M3)"]
[null,120,"Table 2","Fugitive Emission Factors","OIL AND NATURAL GAS (Gg/ 103M3 TOTAL OIL PRODUCTION)","OIL PRODUCTION (Gg/ 103M3 THERMAL BITUMEN PRODUCTION)","THERMAL OIL PRODUCTION – VENTING",80.72,"CO2e (TONNE /M3)"]
[null,121,"Table 2","Fugitive Emission Factors","OIL AND NATURAL GAS (Gg/ 103M3 TOTAL OIL PRODUCTION)","OIL PRODUCTION (Gg/ 103M3 THERMAL BITUMEN PRODUCTION)","THERMAL OIL PRODUCTION – FLARING",27.439,"CO2e (TONNE /M3)"]
[null,122,"Table 2","Fugitive Emission Factors","OIL AND NATURAL GAS (Gg/ 103M3 TOTAL OIL PRODUCTION)","OIL PRODUCTION (Gg/ 103M3 SYNTHETIC CRUDE PRODUCTION FROM OILSANDS)","SYNTHETIC CRUDE (FROM OILSANDS)",52.9,"CO2e (TONNE /M3)"]
[null,123,"Table 2","Fugitive Emission Factors","OIL AND NATURAL GAS (Gg/ 103M3 TOTAL OIL PRODUCTION)","OIL PRODUCTION (Gg/ 103M3 SYNTHETIC CRUDE PRODUCTION FROM OILSANDS)","SYNTHETIC CRUDE (OIL SHALE)",null,"CO2e (TONNE /M3)"]
[null,124,"Table 2","Fugitive Emission Factors","OIL AND NATURAL GAS (Gg/ 103M3 TOTAL OIL PRODUCTION)","OIL PRODUCTION (Gg/ 103M3 TOTAL OIL PRODUCTION)","DEFAULT TOTAL – FUGITIVES",50.88,"CO2e (TONNE /M3)"]
[null,125,"Table 2","Fugitive Emission Factors","OIL AND NATURAL GAS (Gg/ 103M3 TOTAL OIL PRODUCTION)","OIL PRODUCTION (Gg/ 103M3 TOTAL OIL PRODUCTION)","DEFAULT TOTAL – VENTING",201.9,"CO2e (TONNE /M3)"]
[null,126,"Table 2","Fugitive Emission Factors","OIL AND NATURAL GAS (Gg/ 103M3 TOTAL OIL PRODUCTION)","OIL PRODUCTION (Gg/ 103M3 TOTAL OIL PRODUCTION)","DEFAULT TOTAL – FLARING",34.642800000000001,"CO2e (TONNE /M3)"]
[null,127,"Table 2","Fugitive Emission Factors","OIL AND NATURAL GAS (Gg/ 103M3 TOTAL OIL PRODUCTION)","OIL UPGRADING (Gg/ 103M3 OIL UPGRADED)","ALL",null,"CO2e (TONNE /M3)"]
[null,128,"Table 2","Fugitive Emission Factors","OIL AND NATURAL GAS (Gg/ 103M3 TOTAL OIL PRODUCTION)","OIL TRANSPORT (Gg/ 103M3 OIL TRANSPORTED BY PIPELINE)","PIPELINES",0.12470000000000001,"CO2e (TONNE /M3)"]
[null,129,"Table 2","Fugitive Emission Factors","OIL AND NATURAL GAS (Gg/ 103M3 TOTAL OIL PRODUCTION)","OIL TRANSPORT (Gg/ 103M3 OIL TRANSPORTED BY TANKER TRUCK)","TANKER TRUCKS AND RAIL CARS - VENTING",0.57730000000000004,"CO2e (TONNE /M3)"]
[null,130,"Table 2","Fugitive Emission Factors","OIL AND NATURAL GAS (Gg/ 103M3 TOTAL OIL PRODUCTION)","OIL TRANSPORT (Gg/ 103M3 OIL TRANSPORTED BY TANKER SHIPS)","LOADING OFF-SHORE PRODUCTION ON TANKER SHIPS – VENTING","N/A","CO2e (TONNE /M3)"]
[null,131,"Table 2","Fugitive Emission Factors","OIL AND NATURAL GAS (Gg/ 103M3 TOTAL OIL PRODUCTION)","OIL REFINING (Gg/ 103M3 OIL REFINED)","ALL (low end)",5.9799999999999999E-2,"CO2e (TONNE /M3)"]
[null,132,"Table 2","Fugitive Emission Factors","OIL AND NATURAL GAS (Gg/ 103M3 TOTAL OIL PRODUCTION)","OIL REFINING (Gg/ 103M3 OIL REFINED)","ALL (high end)",0.94299999999999995,"CO2e (TONNE /M3)"]
[null,133,"Table 3","Industrial Process and Product Use (IPPU) Emission Factors",null,"CEMENT PRODUCTION (PER TONNE OF CLINKER)","CEMENT",0.52,"(CO2e) PER TONNE"]
[null,134,"Table 3","Industrial Process and Product Use (IPPU) Emission Factors",null,"LIME PRODUCTION (PER TONNE OF LIME)","QUICKLIME/HIGH CALCIUM LIME",0.75,"(CO2e) PER TONNE"]
[null,135,"Table 3","Industrial Process and Product Use (IPPU) Emission Factors",null,"LIME PRODUCTION (PER TONNE OF LIME)","DOLOMITIC LIME",0.77,"(CO2e) PER TONNE"]
[null,136,"Table 3","Industrial Process and Product Use (IPPU) Emission Factors",null,"LIME PRODUCTION (PER TONNE OF LIME)","HYDRATED LIME",0.59,"(CO2e) PER TONNE"]
[null,137,"Table 3","Industrial Process and Product Use (IPPU) Emission Factors",null,"GLASS PRODUCTION (PER TONNE GLASS)","GLASS PRODUCTION",0.2,"(CO2e) PER TONNE"]
[null,138,"Table 3","Industrial Process and Product Use (IPPU) Emission Factors",null,"CERAMICS (PER TONNE CARBONATE)","CALCITE/ARAGONITE (CACO3)",0.43969999999999998,"(CO2e) PER TONNE"]
[null,139,"Table 3","Industrial Process and Product Use (IPPU) Emission Factors",null,"CERAMICS (PER TONNE CARBONATE)","MAGNESITE (MGCO3)",0.52200000000000002,"(CO2e) PER TONNE"]
[null,140,"Table 3","Industrial Process and Product Use (IPPU) Emission Factors",null,"CERAMICS (PER TONNE CARBONATE)","DOLOMITE (CaMg(CO3)2))",0.4773,"(CO2e) PER TONNE"]
[null,141,"Table 3","Industrial Process and Product Use (IPPU) Emission Factors",null,"CERAMICS (PER TONNE CARBONATE)","SIDERITE (FeCO3)",0.37990000000000002,"(CO2e) PER TONNE"]
[null,142,"Table 3","Industrial Process and Product Use (IPPU) Emission Factors",null,"CERAMICS (PER TONNE CARBONATE)","ANKERITE (Ca(Fe,Mg,Mn)(CO3)2))) (low end)",0.40820000000000001,"(CO2e) PER TONNE"]
[null,143,"Table 3","Industrial Process and Product Use (IPPU) Emission Factors",null,"CERAMICS (PER TONNE CARBONATE)","ANKERITE (Ca(Fe,Mg,Mn)(CO3)2))) (high end)",0.47570000000000001,"(CO2e) PER TONNE"]
[null,144,"Table 3","Industrial Process and Product Use (IPPU) Emission Factors",null,"CERAMICS (PER TONNE CARBONATE)","RHODOCHROSITE (MnCO3)",0.38290000000000002,"(CO2e) PER TONNE"]
[null,145,"Table 3","Industrial Process and Product Use (IPPU) Emission Factors",null,"CERAMICS (PER TONNE CARBONATE)","SODIUM CARBONATE/SODA ASH (NA2CO3)",0.41489999999999999,"(CO2e) PER TONNE"]
[null,146,"Table 3","Industrial Process and Product Use (IPPU) Emission Factors",null,"OTHER USES OF SODA ASH (PER TONNE CARBONATE)","CALCITE/ARAGONITE (CACO3)",0.43969999999999998,"(CO2e) PER TONNE"]
[null,147,"Table 3","Industrial Process and Product Use (IPPU) Emission Factors",null,"OTHER USES OF SODA ASH (PER TONNE CARBONATE)","MAGNESITE (MGCO3)",0.52200000000000002,"(CO2e) PER TONNE"]
[null,148,"Table 3","Industrial Process and Product Use (IPPU) Emission Factors",null,"OTHER USES OF SODA ASH (PER TONNE CARBONATE)","DOLOMITE (CaMg(CO3)2))",0.4773,"(CO2e) PER TONNE"]
[null,149,"Table 3","Industrial Process and Product Use (IPPU) Emission Factors",null,"OTHER USES OF SODA ASH (PER TONNE CARBONATE)","SIDERITE (FeCO3)",0.37990000000000002,"(CO2e) PER TONNE"]
[null,150,"Table 3","Industrial Process and Product Use (IPPU) Emission Factors",null,"OTHER USES OF SODA ASH (PER TONNE CARBONATE)","ANKERITE (Ca(Fe,Mg,Mn)(CO3)2))) (low end)",0.40820000000000001,"(CO2e) PER TONNE"]
[null,151,"Table 3","Industrial Process and Product Use (IPPU) Emission Factors",null,"OTHER USES OF SODA ASH (PER TONNE CARBONATE)","ANKERITE (Ca(Fe,Mg,Mn)(CO3)2))) (high end)",0.47570000000000001,"(CO2e) PER TONNE"]
[null,152,"Table 3","Industrial Process and Product Use (IPPU) Emission Factors",null,"OTHER USES OF SODA ASH (PER TONNE CARBONATE)","RHODOCHROSITE (MnCO3)",0.38290000000000002,"(CO2e) PER TONNE"]
[null,153,"Table 3","Industrial Process and Product Use (IPPU) Emission Factors",null,"OTHER USES OF SODA ASH (PER TONNE CARBONATE)","SODIUM CARBONATE/SODA ASH (NA2CO3)",0.41489999999999999,"(CO2e) PER TONNE"]
[null,154,"Table 3","Industrial Process and Product Use (IPPU) Emission Factors",null,"NON METALLURGICAL MAGNESIA PRODUCTION (PER TONNE CARBONATE)","CALCITE/ARAGONITE (CACO3)",0.43969999999999998,"(CO2e) PER TONNE"]
[null,155,"Table 3","Industrial Process and Product Use (IPPU) Emission Factors",null,"NON METALLURGICAL MAGNESIA PRODUCTION (PER TONNE CARBONATE)","MAGNESITE (MGCO3)",0.52200000000000002,"(CO2e) PER TONNE"]
[null,156,"Table 3","Industrial Process and Product Use (IPPU) Emission Factors",null,"NON METALLURGICAL MAGNESIA PRODUCTION (PER TONNE CARBONATE)","DOLOMITE (CaMg(CO3)2))",0.4773,"(CO2e) PER TONNE"]
[null,157,"Table 3","Industrial Process and Product Use (IPPU) Emission Factors",null,"NON METALLURGICAL MAGNESIA PRODUCTION (PER TONNE CARBONATE)","SIDERITE (FeCO3)",0.37990000000000002,"(CO2e) PER TONNE"]
[null,158,"Table 3","Industrial Process and Product Use (IPPU) Emission Factors",null,"NON METALLURGICAL MAGNESIA PRODUCTION (PER TONNE CARBONATE)","ANKERITE (Ca(Fe,Mg,Mn)(CO3)2))) (low end)",0.40820000000000001,"(CO2e) PER TONNE"]
[null,159,"Table 3","Industrial Process and Product Use (IPPU) Emission Factors",null,"NON METALLURGICAL MAGNESIA PRODUCTION (PER TONNE CARBONATE)","ANKERITE (Ca(Fe,Mg,Mn)(CO3)2))) (high end)",0.47570000000000001,"(CO2e) PER TONNE"]
[null,160,"Table 3","Industrial Process and Product Use (IPPU) Emission Factors",null,"NON METALLURGICAL MAGNESIA PRODUCTION (PER TONNE CARBONATE)","RHODOCHROSITE (MnCO3)",0.38290000000000002,"(CO2e) PER TONNE"]
[null,161,"Table 3","Industrial Process and Product Use (IPPU) Emission Factors",null,"NON METALLURGICAL MAGNESIA PRODUCTION (PER TONNE CARBONATE)","SODIUM CARBONATE/SODA ASH (NA2CO3)",0.41489999999999999,"(CO2e) PER TONNE"]
[null,162,"Table 3","Industrial Process and Product Use (IPPU) Emission Factors",null,"OTHER (PER TONNE CARBONATE)","CALCITE/ARAGONITE (CACO3)",0.43969999999999998,"(CO2e) PER TONNE"]
[null,163,"Table 3","Industrial Process and Product Use (IPPU) Emission Factors",null,"OTHER (PER TONNE CARBONATE)","MAGNESITE (MGCO3)",0.52200000000000002,"(CO2e) PER TONNE"]
[null,164,"Table 3","Industrial Process and Product Use (IPPU) Emission Factors",null,"OTHER (PER TONNE CARBONATE)","DOLOMITE (CaMg(CO3)2))",0.4773,"(CO2e) PER TONNE"]
[null,165,"Table 3","Industrial Process and Product Use (IPPU) Emission Factors",null,"OTHER (PER TONNE CARBONATE)","SIDERITE (FeCO3)",0.37990000000000002,"(CO2e) PER TONNE"]
[null,166,"Table 3","Industrial Process and Product Use (IPPU) Emission Factors",null,"OTHER (PER TONNE CARBONATE)","ANKERITE (Ca(Fe,Mg,Mn)(CO3)2))) (low end)",0.40820000000000001,"(CO2e) PER TONNE"]
[null,167,"Table 3","Industrial Process and Product Use (IPPU) Emission Factors",null,"OTHER (PER TONNE CARBONATE)","ANKERITE (Ca(Fe,Mg,Mn)(CO3)2))) (high end)",0.47570000000000001,"(CO2e) PER TONNE"]
[null,168,"Table 3","Industrial Process and Product Use (IPPU) Emission Factors",null,"OTHER (PER TONNE CARBONATE)","RHODOCHROSITE (MnCO3)",0.38290000000000002,"(CO2e) PER TONNE"]
[null,169,"Table 3","Industrial Process and Product Use (IPPU) Emission Factors",null,"OTHER (PER TONNE CARBONATE)","SODIUM CARBONATE/SODA ASH (NA2CO3)",0.41489999999999999,"(CO2e) PER TONNE"]
[null,170,"Table 3","Industrial Process and Product Use (IPPU) Emission Factors",null,"AMMONIA PRODUCTION (PER TONNE NH3)","MODERN PLANTS-CONVENTIONAL REFORMING (NATURAL GAS)",1.694,"(CO2e) PER TONNE"]
[null,171,"Table 3","Industrial Process and Product Use (IPPU) Emission Factors",null,"AMMONIA PRODUCTION (PER TONNE NH3)","EXCESS AIR REFORMING (NATURAL GAS)",1.6659999999999999,"(CO2e) PER TONNE"]
[null,172,"Table 3","Industrial Process and Product Use (IPPU) Emission Factors",null,"AMMONIA PRODUCTION (PER TONNE NH3)","AUTOTHERMAL REFORMING (NATURAL GAS)",1.694,"(CO2e) PER TONNE"]
[null,173,"Table 3","Industrial Process and Product Use (IPPU) Emission Factors",null,"AMMONIA PRODUCTION (PER TONNE NH3)","PARTIAL OXIDATION",2.7719999999999998,"(CO2e) PER TONNE"]
[null,174,"Table 3","Industrial Process and Product Use (IPPU) Emission Factors",null,"AMMONIA PRODUCTION (PER TONNE NH3)","AVERAGE VALUE NATURAL GAS (MIXTURE OF MODERN &OLD)",2.1040000000000001,"(CO2e) PER TONNE"]
[null,175,"Table 3","Industrial Process and Product Use (IPPU) Emission Factors",null,"AMMONIA PRODUCTION (PER TONNE NH3)","AVERAGE VALUE (PARTIAL OXIDATION)",3.2730000000000001,"(CO2e) PER TONNE"]
[null,176,"Table 3","Industrial Process and Product Use (IPPU) Emission Factors",null,"NITRIC ACID PRODUCTION (PER TONNE NITRIC ACID)","PLANTS WITH NSCR (ALL PROCESSES)",0.59199999999999997,"(CO2e) PER TONNE"]
[null,177,"Table 3","Industrial Process and Product Use (IPPU) Emission Factors",null,"NITRIC ACID PRODUCTION (PER TONNE NITRIC ACID)","PLANTS WITH PROCESS (INTEGRATED OR TAILGAS NO2 DESTRUCTION)",0.74,"(CO2e) PER TONNE"]
[null,178,"Table 3","Industrial Process and Product Use (IPPU) Emission Factors",null,"NITRIC ACID PRODUCTION (PER TONNE NITRIC ACID)","ATMOSPHERIC PRESSURE PLANTS (LOW PRESSURE PLANTS)",1.48,"(CO2e) PER TONNE"]
[null,179,"Table 3","Industrial Process and Product Use (IPPU) Emission Factors",null,"NITRIC ACID PRODUCTION (PER TONNE NITRIC ACID)","MEDIUM PRESSURE COMBUSTION PLANTS (MEDIUM PRESSURE)",2.0720000000000001,"(CO2e) PER TONNE"]
[null,180,"Table 3","Industrial Process and Product Use (IPPU) Emission Factors",null,"NITRIC ACID PRODUCTION (PER TONNE NITRIC ACID)","HIGH PRESSURE PLANTS (HIGH PRESSURE)",2.6640000000000001,"(CO2e) PER TONNE"]
[null,181,"Table 3","Industrial Process and Product Use (IPPU) Emission Factors",null,"ADIPIC ACID PRODUCTION (PER TONNE ADIPIC ACID UNCONTROLLED)","NITRIC ACID OXIDATION (ADIPIC ACID)",88.8,"(CO2e) PER TONNE"]
[null,182,"Table 3","Industrial Process and Product Use (IPPU) Emission Factors",null,"CAPROLACTAM,GLYOXAL AND GLYOXYLIC ACID PRODUCTION (PER TONNE PRODUCED)","CAPROLACTAM PRODUCTION (RASCHIG)",2.6640000000000001,"(CO2e) PER TONNE"]
[null,183,"Table 3","Industrial Process and Product Use (IPPU) Emission Factors",null,"CAPROLACTAM,GLYOXAL AND GLYOXYLIC ACID PRODUCTION (PER TONNE PRODUCED)","GLYOXAL PRODUCTION",2.9600000000000001E-2,"(CO2e) PER TONNE"]
[null,184,"Table 3","Industrial Process and Product Use (IPPU) Emission Factors",null,"CAPROLACTAM,GLYOXAL AND GLYOXYLIC ACID PRODUCTION (PER TONNE PRODUCED)","GLYOXYLIC ACID PRODUCTION",5.8999999999999999E-3,"(CO2e) PER TONNE"]
[null,185,"Table 3","Industrial Process and Product Use (IPPU) Emission Factors",null,"CARBIDE PRODUCTION (PER TONNE RAW MATERIAL USED)","SILICON CARBIDE PRODUCTION",2.5346000000000002,"(CO2e) PER TONNE"]
[null,186,"Table 3","Industrial Process and Product Use (IPPU) Emission Factors",null,"CARBIDE PRODUCTION (PER TONNE RAW MATERIAL USED)","PETROLEUM COKE USE",1.7,"(CO2e) PER TONNE"]
[null,187,"Table 3","Industrial Process and Product Use (IPPU) Emission Factors",null,"CARBIDE PRODUCTION (PER TONNE CARBIDE PRODUCED)","SILICON CARBIDE PRODUCTION (CARBIDE PRODUCED)",2.8868,"(CO2e) PER TONNE"]
[null,188,"Table 3","Industrial Process and Product Use (IPPU) Emission Factors",null,"CARBIDE PRODUCTION (PER TONNE CARBIDE PRODUCED)","PETROLEUM COKE USE",1.0900000000000001,"(CO2e) PER TONNE"]
[null,189,"Table 3","Industrial Process and Product Use (IPPU) Emission Factors",null,"CARBIDE PRODUCTION (PER TONNE CARBIDE PRODUCED)","USE OF PRODUCT",1.1000000000000001,"(CO2e) PER TONNE"]
[null,190,"Table 3","Industrial Process and Product Use (IPPU) Emission Factors",null,"TITANIUM DIOXIDE PRODUCTION (PER TONNE PRODUCT)","TITANIUM SLAG",null,"(CO2e) PER TONNE"]
[null,191,"Table 3","Industrial Process and Product Use (IPPU) Emission Factors",null,"TITANIUM DIOXIDE PRODUCTION (PER TONNE PRODUCT)","SYNTHETIC RUTILE",1.43,"(CO2e) PER TONNE"]
[null,192,"Table 3","Industrial Process and Product Use (IPPU) Emission Factors",null,"TITANIUM DIOXIDE PRODUCTION (PER TONNE PRODUCT)","RUTILE TITANIUM DIOXIDE (CHLORIDE ROUTE)",1.34,"(CO2e) PER TONNE"]
[null,193,"Table 3","Industrial Process and Product Use (IPPU) Emission Factors",null,"SODA ASH PRODUCTION (PER TONNE OF SODA ASH OR TRONA)","NATURAL SODA ASH OUTPUT",0.13800000000000001,"(CO2e) PER TONNE"]
[null,194,"Table 3","Industrial Process and Product Use (IPPU) Emission Factors",null,"SODA ASH PRODUCTION (PER TONNE OF SODA ASH OR TRONA)","NATURAL SODA ASH (TRONA USED)",9.7000000000000003E-2,"(CO2e) PER TONNE"]
[null,195,"Table 3","Industrial Process and Product Use (IPPU) Emission Factors","PETROCHEMICAL AND CARBON BLACK PRODUCTION","METHANOL PRODUCTION (PER TONNE METHANOL PRODUCED)","CONVENTIONAL STEAM REFORMING WITHOUT PRIMARY REFORMER (NATURAL GAS FEEDSTOCK)",0.72289999999999999,"(CO2e) PER TONNE"]
[null,196,"Table 3","Industrial Process and Product Use (IPPU) Emission Factors","PETROCHEMICAL AND CARBON BLACK PRODUCTION","METHANOL PRODUCTION (PER TONNE METHANOL PRODUCED)","CONVENTIONAL STEAM REFORMING WITH PRIMARY REFORMER (NATURAL GAS FEEDSTOCK)",0.54990000000000006,"(CO2e) PER TONNE"]
[null,197,"Table 3","Industrial Process and Product Use (IPPU) Emission Factors","PETROCHEMICAL AND CARBON BLACK PRODUCTION","METHANOL PRODUCTION (PER TONNE METHANOL PRODUCED)","CONVENTIONAL STEAM REFORMING LURGI CONVENTIONAL PROCESS (NATURAL GAS FEEDSTOCK)",0.43790000000000001,"(CO2e) PER TONNE"]
[null,198,"Table 3","Industrial Process and Product Use (IPPU) Emission Factors","PETROCHEMICAL AND CARBON BLACK PRODUCTION","METHANOL PRODUCTION (PER TONNE METHANOL PRODUCED)","CONVENTIONAL STEAM REFORMING LURGI CONVENTIONAL PROCESS (NATURAL GAS+CO2 FEEDSTOCK)",0.31990000000000002,"(CO2e) PER TONNE"]
[null,199,"Table 3","Industrial Process and Product Use (IPPU) Emission Factors","PETROCHEMICAL AND CARBON BLACK PRODUCTION","METHANOL PRODUCTION (PER TONNE METHANOL PRODUCED)","CONVENTIONAL STEAM REFORMING LURGI LOW PRESSURE PROCESS (NATURAL GAS FEEDSTOCK)",0.31990000000000002,"(CO2e) PER TONNE"]
[null,200,"Table 3","Industrial Process and Product Use (IPPU) Emission Factors","PETROCHEMICAL AND CARBON BLACK PRODUCTION","METHANOL PRODUCTION (PER TONNE METHANOL PRODUCED)","CONVENTIONAL STEAM REFORMING LURGI COMBINED PROCESS (NATURAL GAS FEEDSTOCK)",0.44890000000000002,"(CO2e) PER TONNE"]
[null,201,"Table 3","Industrial Process and Product Use (IPPU) Emission Factors","PETROCHEMICAL AND CARBON BLACK PRODUCTION","METHANOL PRODUCTION (PER TONNE METHANOL PRODUCED)","CONVENTIONAL STEAM REFORMING LURGI MEGA METHANOL PROCESS (NATURAL GAS FEEDSTOCK)",0.3629,"(CO2e) PER TONNE"]
[null,202,"Table 3","Industrial Process and Product Use (IPPU) Emission Factors","PETROCHEMICAL AND CARBON BLACK PRODUCTION","METHANOL PRODUCTION (PER TONNE METHANOL PRODUCED)","PARTIAL OXIDATION PROCESS (OIL FEEDSTOCK)",1.4289000000000001,"(CO2e) PER TONNE"]
[null,203,"Table 3","Industrial Process and Product Use (IPPU) Emission Factors","PETROCHEMICAL AND CARBON BLACK PRODUCTION","METHANOL PRODUCTION (PER TONNE METHANOL PRODUCED)","PARTIAL OXIDATION PROCESS (COAL FEEDSTOCK)",5.3379000000000003,"(CO2e) PER TONNE"]
[null,204,"Table 3","Industrial Process and Product Use (IPPU) Emission Factors","PETROCHEMICAL AND CARBON BLACK PRODUCTION","METHANOL PRODUCTION (PER TONNE METHANOL PRODUCED)","PARTIAL OXIDATION PROCESS (LIGNITE FEEDSTOCK)",5.0728999999999997,"(CO2e) PER TONNE"]
[null,205,"Table 3","Industrial Process and Product Use (IPPU) Emission Factors","PETROCHEMICAL AND CARBON BLACK PRODUCTION","METHANOL PRODUCTION (PER TONNE METHANOL PRODUCED)","CONVENTIONAL STEAM REFORMING WITH INTEGRATED AMMONIA PRODUCTION (NATURAL GAS FEEDSTOCK)",1.0729,"(CO2e) PER TONNE"]
[null,206,"Table 3","Industrial Process and Product Use (IPPU) Emission Factors","PETROCHEMICAL AND CARBON BLACK PRODUCTION","STEAM CRACKING ETHYLENE PRODUCTION (PER TONNE ETHYLENE PRODUCED)","ETHYLENE (TOTAL PROCESS & ENERGY FEEDSTOCK USE) – NAPTHA",1.7989999999999999,"(CO2e) PER TONNE"]
[null,207,"Table 3","Industrial Process and Product Use (IPPU) Emission Factors","PETROCHEMICAL AND CARBON BLACK PRODUCTION","STEAM CRACKING ETHYLENE PRODUCTION (PER TONNE ETHYLENE PRODUCED)","ETHYLENE (TOTAL PROCESS & ENERGY FEEDSTOCK USE) - GAS OIL",2.359,"(CO2e) PER TONNE"]
[null,208,"Table 3","Industrial Process and Product Use (IPPU) Emission Factors","PETROCHEMICAL AND CARBON BLACK PRODUCTION","STEAM CRACKING ETHYLENE PRODUCTION (PER TONNE ETHYLENE PRODUCED)","ETHYLENE (TOTAL PROCESS & ENERGY FEEDSTOCK USE) – ETHANE",1.0880000000000001,"(CO2e) PER TONNE"]
[null,209,"Table 3","Industrial Process and Product Use (IPPU) Emission Factors","PETROCHEMICAL AND CARBON BLACK PRODUCTION","STEAM CRACKING ETHYLENE PRODUCTION (PER TONNE ETHYLENE PRODUCED)","ETHYLENE (TOTAL PROCESS & ENERGY FEEDSTOCK USE) – PROPANE",1.109,"(CO2e) PER TONNE"]
[null,210,"Table 3","Industrial Process and Product Use (IPPU) Emission Factors","PETROCHEMICAL AND CARBON BLACK PRODUCTION","STEAM CRACKING ETHYLENE PRODUCTION (PER TONNE ETHYLENE PRODUCED)","ETHYLENE (TOTAL PROCESS & ENERGY FEEDSTOCK USE) – BUTANE",1.139,"(CO2e) PER TONNE"]
[null,211,"Table 3","Industrial Process and Product Use (IPPU) Emission Factors","PETROCHEMICAL AND CARBON BLACK PRODUCTION","STEAM CRACKING ETHYLENE PRODUCTION (PER TONNE ETHYLENE PRODUCED)","ETHYLENE (TOTAL PROCESS & ENERGY FEEDSTOCK USE) – OTHER",1.7989999999999999,"(CO2e) PER TONNE"]
[null,212,"Table 3","Industrial Process and Product Use (IPPU) Emission Factors","PETROCHEMICAL AND CARBON BLACK PRODUCTION","STEAM CRACKING ETHYLENE PRODUCTION (PER TONNE ETHYLENE PRODUCED)","ETHYLENE ( PROCESS FEEDSTOCK USE) - NAPHTHA",1.7989999999999999,"(CO2e) PER TONNE"]
[null,213,"Table 3","Industrial Process and Product Use (IPPU) Emission Factors","PETROCHEMICAL AND CARBON BLACK PRODUCTION","STEAM CRACKING ETHYLENE PRODUCTION (PER TONNE ETHYLENE PRODUCED)","ETHYLENE ( PROCESS FEEDSTOCK USE) - GAS OIL",2.2389999999999999,"(CO2e) PER TONNE"]
[null,214,"Table 3","Industrial Process and Product Use (IPPU) Emission Factors","PETROCHEMICAL AND CARBON BLACK PRODUCTION","STEAM CRACKING ETHYLENE PRODUCTION (PER TONNE ETHYLENE PRODUCED)","ETHYLENE ( PROCESS FEEDSTOCK USE) - ETHANE",0.89800000000000002,"(CO2e) PER TONNE"]
[null,215,"Table 3","Industrial Process and Product Use (IPPU) Emission Factors","PETROCHEMICAL AND CARBON BLACK PRODUCTION","STEAM CRACKING ETHYLENE PRODUCTION (PER TONNE ETHYLENE PRODUCED)","ETHYLENE ( PROCESS FEEDSTOCK USE) - PROPANE",1.109,"(CO2e) PER TONNE"]
[null,216,"Table 3","Industrial Process and Product Use (IPPU) Emission Factors","PETROCHEMICAL AND CARBON BLACK PRODUCTION","STEAM CRACKING ETHYLENE PRODUCTION (PER TONNE ETHYLENE PRODUCED)","ETHYLENE ( PROCESS FEEDSTOCK USE) - BUTANE",1.139,"(CO2e) PER TONNE"]
[null,217,"Table 3","Industrial Process and Product Use (IPPU) Emission Factors","PETROCHEMICAL AND CARBON BLACK PRODUCTION","STEAM CRACKING ETHYLENE PRODUCTION (PER TONNE ETHYLENE PRODUCED)","ETHYLENE ( PROCESS FEEDSTOCK USE) -OTHER",1.7989999999999999,"(CO2e) PER TONNE"]
[null,218,"Table 3","Industrial Process and Product Use (IPPU) Emission Factors","PETROCHEMICAL AND CARBON BLACK PRODUCTION","STEAM CRACKING ETHYLENE PRODUCTION (PER TONNE ETHYLENE PRODUCED)","ETHYLENE ( SUPPLEMENTAL FUEL-ENERGY FEEDSTOCK) USE - GAS OIL",0.189,"(CO2e) PER TONNE"]
[null,219,"Table 3","Industrial Process and Product Use (IPPU) Emission Factors","PETROCHEMICAL AND CARBON BLACK PRODUCTION","STEAM CRACKING ETHYLENE PRODUCTION (PER TONNE ETHYLENE PRODUCED)","ETHYLENE ( SUPPLEMENTAL FUEL-ENERGY FEEDSTOCK) USE – ETHANE",0.32800000000000001,"(CO2e) PER TONNE"]
[null,220,"Table 3","Industrial Process and Product Use (IPPU) Emission Factors","PETROCHEMICAL AND CARBON BLACK PRODUCTION","ETHYLENE DICHLORIDE AND VINYL CHLORIDE MONOMER (PER TONNE EDC PRODUCED OR TONNE VCM PRODUCT PRODUCED)","DIRECT CHORINATION PROCESS (EDC)",0.1915,"(CO2e) PER TONNE"]
[null,221,"Table 3","Industrial Process and Product Use (IPPU) Emission Factors","PETROCHEMICAL AND CARBON BLACK PRODUCTION","ETHYLENE DICHLORIDE AND VINYL CHLORIDE MONOMER (PER TONNE EDC PRODUCED OR TONNE VCM PRODUCT PRODUCED)","OXYCHLORINATION PROCESS (EDC)",0.20250000000000001,"(CO2e) PER TONNE"]
[null,222,"Table 3","Industrial Process and Product Use (IPPU) Emission Factors","PETROCHEMICAL AND CARBON BLACK PRODUCTION","ETHYLENE DICHLORIDE AND VINYL CHLORIDE MONOMER (PER TONNE EDC PRODUCED OR TONNE VCM PRODUCT PRODUCED)","BALANCED PROCESS (DEFAULT) – EDC",0.19650000000000001,"(CO2e) PER TONNE"]
[null,223,"Table 3","Industrial Process and Product Use (IPPU) Emission Factors","PETROCHEMICAL AND CARBON BLACK PRODUCTION","ETHYLENE DICHLORIDE AND VINYL CHLORIDE MONOMER (PER TONNE VCM PRODUCED OR TONNE VCM PRODUCT PRODUCED)","DIRECT CHORINATION-PROCESS (VCM)",0.28649999999999998,"(CO2e) PER TONNE"]
[null,224,"Table 3","Industrial Process and Product Use (IPPU) Emission Factors","PETROCHEMICAL AND CARBON BLACK PRODUCTION","ETHYLENE DICHLORIDE AND VINYL CHLORIDE MONOMER (PER TONNE VCM PRODUCED OR TONNE VCM PRODUCT PRODUCED)","OXYCHLORINATION PROCESS (VCM)",0.30249999999999999,"(CO2e) PER TONNE"]
[null,225,"Table 3","Industrial Process and Product Use (IPPU) Emission Factors","PETROCHEMICAL AND CARBON BLACK PRODUCTION","ETHYLENE DICHLORIDE AND VINYL CHLORIDE MONOMER (PER TONNE VCM PRODUCED OR TONNE VCM PRODUCT PRODUCED)","BALANCED PROCESS (DEFAULT) –VCM",0.29449999999999998,"(CO2e) PER TONNE"]
[null,226,"Table 3","Industrial Process and Product Use (IPPU) Emission Factors","PETROCHEMICAL AND CARBON BLACK PRODUCTION","ETHYLENE OXIDE (PER TONNE ETHYLENE OXIDE PRODUCED)","AIR PROCESS (DEFAULT) - CATALYST DEFAULT (70)",0.9042,"(CO2e) PER TONNE"]
[null,227,"Table 3","Industrial Process and Product Use (IPPU) Emission Factors","PETROCHEMICAL AND CARBON BLACK PRODUCTION","ETHYLENE OXIDE (PER TONNE ETHYLENE OXIDE PRODUCED)","AIR PROCESS (DEFAULT) - CATALYST (75)",0.70420000000000005,"(CO2e) PER TONNE"]
[null,228,"Table 3","Industrial Process and Product Use (IPPU) Emission Factors","PETROCHEMICAL AND CARBON BLACK PRODUCTION","ETHYLENE OXIDE (PER TONNE ETHYLENE OXIDE PRODUCED)","AIR PROCESS (DEFAULT) - CATALYST (80)",0.54120000000000001,"(CO2e) PER TONNE"]
[null,229,"Table 3","Industrial Process and Product Use (IPPU) Emission Factors","PETROCHEMICAL AND CARBON BLACK PRODUCTION","ETHYLENE OXIDE (PER TONNE ETHYLENE OXIDE PRODUCED)","OXYGEN PROCESS (DEFAULT) - CATALYST DEFAULT (75)",0.70420000000000005,"(CO2e) PER TONNE"]
[null,230,"Table 3","Industrial Process and Product Use (IPPU) Emission Factors","PETROCHEMICAL AND CARBON BLACK PRODUCTION","ETHYLENE OXIDE (PER TONNE ETHYLENE OXIDE PRODUCED)","OXYGEN PROCESS - CATALYST (80)",0.54120000000000001,"(CO2e) PER TONNE"]
[null,231,"Table 3","Industrial Process and Product Use (IPPU) Emission Factors","PETROCHEMICAL AND CARBON BLACK PRODUCTION","ETHYLENE OXIDE (PER TONNE ETHYLENE OXIDE PRODUCED)","OXYGEN PROCESS - CATALYST (85)",0.39119999999999999,"(CO2e) PER TONNE"]
[null,232,"Table 3","Industrial Process and Product Use (IPPU) Emission Factors","PETROCHEMICAL AND CARBON BLACK PRODUCTION","ACRYLONITRILE (PER TONNE ACRYLONITRILE PRODUCED)","DIRECT AMMOXIDATION WITH SECONDARY PRODUCTS BURNED FOR ENERGY RECOVERY OR FLARED (DEFAULT)",1.0041,"(CO2e) PER TONNE"]
[null,233,"Table 3","Industrial Process and Product Use (IPPU) Emission Factors","PETROCHEMICAL AND CARBON BLACK PRODUCTION","ACRYLONITRILE (PER TONNE ACRYLONITRILE PRODUCED)","DIRECT AMMOXIDATION WITH ACETONITRILE BURNED FOR ENERGY RECOVERY OR FLARED",0.83409999999999995,"(CO2e) PER TONNE"]
[null,234,"Table 3","Industrial Process and Product Use (IPPU) Emission Factors","PETROCHEMICAL AND CARBON BLACK PRODUCTION","ACRYLONITRILE (PER TONNE ACRYLONITRILE PRODUCED)","DIRECT AMMOXIDATION WITH ACETONITRILE & HYDROGEN CYANIDE RECOVERED AS PRODUCT",0.79410000000000003,"(CO2e) PER TONNE"]
[null,235,"Table 3","Industrial Process and Product Use (IPPU) Emission Factors","PETROCHEMICAL AND CARBON BLACK PRODUCTION","CARBON BLACK PRODUCTION (PER TONNE CARBON BLACK PRODUCED)","FURNACE BLACK PROCESS (DEFAULT)",2.6214,"(CO2e) PER TONNE"]
[null,236,"Table 3","Industrial Process and Product Use (IPPU) Emission Factors","PETROCHEMICAL AND CARBON BLACK PRODUCTION","CARBON BLACK PRODUCTION (PER TONNE CARBON BLACK PRODUCED)","THERMAL BLACK PROCESS",5.2514000000000003,"(CO2e) PER TONNE"]
[null,237,"Table 3","Industrial Process and Product Use (IPPU) Emission Factors","PETROCHEMICAL AND CARBON BLACK PRODUCTION","CARBON BLACK PRODUCTION (PER TONNE CARBON BLACK PRODUCED)","ACETYLENE BLACK PROCESS",0.78139999999999998,"(CO2e) PER TONNE"]
[null,238,"Table 3","Industrial Process and Product Use (IPPU) Emission Factors","PETROCHEMICAL AND CARBON BLACK PRODUCTION","IRON AND STEEL PRODUCTION (PER TONNE PRODUCT PRODUCED)","SINTER PRODUCTION",0.34160000000000001,"(CO2e) PER TONNE"]
[null,239,"Table 3","Industrial Process and Product Use (IPPU) Emission Factors","PETROCHEMICAL AND CARBON BLACK PRODUCTION","IRON AND STEEL PRODUCTION (PER TONNE PRODUCT PRODUCED)","COKE OVEN",0.56230000000000002,"(CO2e) PER TONNE"]
[null,240,"Table 3","Industrial Process and Product Use (IPPU) Emission Factors","PETROCHEMICAL AND CARBON BLACK PRODUCTION","IRON AND STEEL PRODUCTION (PER TONNE PRODUCT PRODUCED)","PIG IRON PRODUCTION",1.35,"(CO2e) PER TONNE"]
[null,241,"Table 3","Industrial Process and Product Use (IPPU) Emission Factors","PETROCHEMICAL AND CARBON BLACK PRODUCTION","IRON AND STEEL PRODUCTION (PER TONNE PRODUCT PRODUCED)","DIRECT REDUCED IRON (DRI) PRODUCTION",1.5249999999999999,"(CO2e) PER TONNE"]
[null,242,"Table 3","Industrial Process and Product Use (IPPU) Emission Factors","PETROCHEMICAL AND CARBON BLACK PRODUCTION","IRON AND STEEL PRODUCTION (PER TONNE PRODUCT PRODUCED)","PELLET PRODUCTION",0.03,"(CO2e) PER TONNE"]
[null,243,"Table 3","Industrial Process and Product Use (IPPU) Emission Factors","PETROCHEMICAL AND CARBON BLACK PRODUCTION","IRON AND STEEL PRODUCTION (PER TONNE PRODUCT PRODUCED)","BASIC OXYGEN FURNACE",1.46,"(CO2e) PER TONNE"]
[null,244,"Table 3","Industrial Process and Product Use (IPPU) Emission Factors","PETROCHEMICAL AND CARBON BLACK PRODUCTION","IRON AND STEEL PRODUCTION (PER TONNE PRODUCT PRODUCED)","ELECTRIC ARC FURNACE",1.1000000000000001,"(CO2e) PER TONNE"]
[null,245,"Table 3","Industrial Process and Product Use (IPPU) Emission Factors","PETROCHEMICAL AND CARBON BLACK PRODUCTION","IRON AND STEEL PRODUCTION (PER TONNE PRODUCT PRODUCED)","OPEN HEARTH FURNACE",1.72,"(CO2e) PER TONNE"]
[null,246,"Table 3","Industrial Process and Product Use (IPPU) Emission Factors","PETROCHEMICAL AND CARBON BLACK PRODUCTION","IRON AND STEEL PRODUCTION (PER TONNE PRODUCT PRODUCED)","GLOBAL AVERAGE",1.06,"(CO2e) PER TONNE"]
[null,247,"Table 3","Industrial Process and Product Use (IPPU) Emission Factors","PETROCHEMICAL AND CARBON BLACK PRODUCTION","FERROALLOYS PRODUCTION (PER TONNE PRODUCTION)","FERROSILICON (45%) SI",2.5,"(CO2e) PER TONNE"]
[null,248,"Table 3","Industrial Process and Product Use (IPPU) Emission Factors","PETROCHEMICAL AND CARBON BLACK PRODUCTION","FERROALLOYS PRODUCTION (PER TONNE PRODUCTION)","FERROSILICON (65%) SI",3.6230000000000002,"(CO2e) PER TONNE"]
[null,249,"Table 3","Industrial Process and Product Use (IPPU) Emission Factors","PETROCHEMICAL AND CARBON BLACK PRODUCTION","FERROALLOYS PRODUCTION (PER TONNE PRODUCTION)","FERROSILICON (75%) SI",4.0229999999999997,"(CO2e) PER TONNE"]
[null,250,"Table 3","Industrial Process and Product Use (IPPU) Emission Factors","PETROCHEMICAL AND CARBON BLACK PRODUCTION","FERROALLOYS PRODUCTION (PER TONNE PRODUCTION)","FERROSILICON (90%) SI",4.8253000000000004,"(CO2e) PER TONNE"]
[null,251,"Table 3","Industrial Process and Product Use (IPPU) Emission Factors","PETROCHEMICAL AND CARBON BLACK PRODUCTION","FERROALLOYS PRODUCTION (PER TONNE PRODUCTION)","FERROMANGANESE (7% C)",1.3,"(CO2e) PER TONNE"]
[null,252,"Table 3","Industrial Process and Product Use (IPPU) Emission Factors","PETROCHEMICAL AND CARBON BLACK PRODUCTION","FERROALLOYS PRODUCTION (PER TONNE PRODUCTION)","FERROMANGANESE (1% C)",1.5,"(CO2e) PER TONNE"]
[null,253,"Table 3","Industrial Process and Product Use (IPPU) Emission Factors","PETROCHEMICAL AND CARBON BLACK PRODUCTION","FERROALLOYS PRODUCTION (PER TONNE PRODUCTION)","SILICOMANGANESE",1.4,"(CO2e) PER TONNE"]
[null,254,"Table 3","Industrial Process and Product Use (IPPU) Emission Factors","PETROCHEMICAL AND CARBON BLACK PRODUCTION","FERROALLOYS PRODUCTION (PER TONNE PRODUCTION)","SILICON METAL",5.0275999999999996,"(CO2e) PER TONNE"]
[null,255,"Table 3","Industrial Process and Product Use (IPPU) Emission Factors","PETROCHEMICAL AND CARBON BLACK PRODUCTION","FERROALLOYS PRODUCTION (PER TONNE PRODUCTION)","FERROCHROMIUM (STAND ALONE)",1.3,"(CO2e) PER TONNE"]
[null,256,"Table 3","Industrial Process and Product Use (IPPU) Emission Factors","PETROCHEMICAL AND CARBON BLACK PRODUCTION","FERROALLOYS PRODUCTION (PER TONNE PRODUCTION)","FERROCHROMIUM (WITH SINTER PLANT)",1.6,"(CO2e) PER TONNE"]
[null,257,"Table 3","Industrial Process and Product Use (IPPU) Emission Factors","PETROCHEMICAL AND CARBON BLACK PRODUCTION","ALUMINIUM PRODUCTION (PER TONNE ALUMINIUM PRODUCED)","PREBAKE",1.6,"(CO2e) PER TONNE"]
[null,258,"Table 3","Industrial Process and Product Use (IPPU) Emission Factors","PETROCHEMICAL AND CARBON BLACK PRODUCTION","ALUMINIUM PRODUCTION (PER TONNE ALUMINIUM PRODUCED)","SODERBERG",1.7,"(CO2e) PER TONNE"]
[null,259,"Table 3","Industrial Process and Product Use (IPPU) Emission Factors","PETROCHEMICAL AND CARBON BLACK PRODUCTION","ALUMINIUM PRODUCTION (PER TONNE ALUMINIUM PRODUCED)","CWPB",2.7559999999999998,"(CO2e) PER TONNE"]
[null,260,"Table 3","Industrial Process and Product Use (IPPU) Emission Factors","PETROCHEMICAL AND CARBON BLACK PRODUCTION","ALUMINIUM PRODUCTION (PER TONNE ALUMINIUM PRODUCED)","SWPB",13.88,"(CO2e) PER TONNE"]
[null,261,"Table 3","Industrial Process and Product Use (IPPU) Emission Factors","PETROCHEMICAL AND CARBON BLACK PRODUCTION","ALUMINIUM PRODUCTION (PER TONNE ALUMINIUM PRODUCED)","VSS",5.0359999999999996,"(CO2e) PER TONNE"]
[null,262,"Table 3","Industrial Process and Product Use (IPPU) Emission Factors","PETROCHEMICAL AND CARBON BLACK PRODUCTION","ALUMINIUM PRODUCTION (PER TONNE ALUMINIUM PRODUCED)","HSS",2.637,"(CO2e) PER TONNE"]
[null,263,"Table 3","Industrial Process and Product Use (IPPU) Emission Factors","PETROCHEMICAL AND CARBON BLACK PRODUCTION","MAGNESIUM PRODUCTION (PER TONNE MAGNESIUM PRODUCED)","DOLOMITE",27.33,"(CO2e) PER TONNE"]
[null,264,"Table 3","Industrial Process and Product Use (IPPU) Emission Factors","PETROCHEMICAL AND CARBON BLACK PRODUCTION","MAGNESIUM PRODUCTION (PER TONNE MAGNESIUM PRODUCED)","MAGNESITE",25.03,"(CO2e) PER TONNE"]
[null,265,"Table 3","Industrial Process and Product Use (IPPU) Emission Factors","PETROCHEMICAL AND CARBON BLACK PRODUCTION","LEAD PRODUCTION (PER TONNE PRODUCT)","IMPERIAL SMELT FURNACE (ISF) PRODUCTION",0.59,"(CO2e) PER TONNE"]
[null,266,"Table 3","Industrial Process and Product Use (IPPU) Emission Factors","PETROCHEMICAL AND CARBON BLACK PRODUCTION","LEAD PRODUCTION (PER TONNE PRODUCT)","DIRECT SMELTING PRODUCTION",0.25,"(CO2e) PER TONNE"]
[null,267,"Table 3","Industrial Process and Product Use (IPPU) Emission Factors","PETROCHEMICAL AND CARBON BLACK PRODUCTION","LEAD PRODUCTION (PER TONNE PRODUCT)","TREATMENT OF SECONDARY RAW MATERIALS",0.2,"(CO2e) PER TONNE"]
[null,268,"Table 3","Industrial Process and Product Use (IPPU) Emission Factors","PETROCHEMICAL AND CARBON BLACK PRODUCTION","LEAD PRODUCTION (PER TONNE PRODUCT)","DEFAULT EF",0.52,"(CO2e) PER TONNE"]
[null,269,"Table 3","Industrial Process and Product Use (IPPU) Emission Factors","PETROCHEMICAL AND CARBON BLACK PRODUCTION","ZINC PRODUCTION (PER TONNE PRODUCT)","WAELZ KILN",3.66,"(CO2e) PER TONNE"]
[null,270,"Table 3","Industrial Process and Product Use (IPPU) Emission Factors","PETROCHEMICAL AND CARBON BLACK PRODUCTION","ZINC PRODUCTION (PER TONNE PRODUCT)","PYROMETALLURGICAL",0.43,"(CO2e) PER TONNE"]
[null,271,"Table 3","Industrial Process and Product Use (IPPU) Emission Factors","PETROCHEMICAL AND CARBON BLACK PRODUCTION","ZINC PRODUCTION (PER TONNE PRODUCT)","DEFAULT EF",1.72,"(CO2e) PER TONNE"]

{"sheet":"Schedule 2","index":7,"n_rows":97,"n_cols":12,"rows_kept":97,"cut":false,"hidden":true,"merged":[]}
[]
[null,"SCHEDULE 2 Carbon Tax draft Bill"]
[]
[]
[]
[]
[]
[null,null,null,"Sector","Basic tax-free allowance for fossil fuel combustion emissions %","Basic tax-free allowance for process emissions %","Fugitive emissions allowance %","Trade exposure allowance %","Z-factor allowance %","Carbon budget allowance %","Offsets allowance %","Maximum total allowances %"]
[null,"Fuel combustion","Energy Industries","Main activity electricity and heat production",60,0,0,0,0,5,10,75]
[null,"Fuel combustion","Energy Industries","Petroleum refining",60,0,0,10,5,5,10,90]
[null,"Fuel combustion","Energy Industries","Manufacture of solid fuels & other energy industries",60,0,0,10,5,5,10,90]
[null,"Fuel combustion","Energy Industries","Manufacturing industries and Construction",60,0,0,10,5,5,10,90]
[null,"Fuel combustion","Energy Industries","Iron and steel",60,0,0,10,5,5,10,90]
[null,"Fuel combustion","Energy Industries","Non-ferrous metals energy",60,0,0,10,5,5,10,90]
[null,"Fuel combustion","Energy Industries","Chemicals",60,0,0,10,5,5,10,90]
[null,"Fuel combustion","Energy Industries","Pulp, paper and print",60,0,0,10,5,5,10,90]
[null,"Fuel combustion","Energy Industries","Food processing; beverage; tobacco",60,0,0,10,5,5,10,90]
[null,"Fuel combustion","Energy Industries","Non-metallic minerals",60,0,0,10,5,5,10,90]
[null,"Fuel combustion","Energy Industries","Transport Equipment",60,0,0,10,5,5,10,90]
[null,"Fuel combustion","Energy Industries","Machinery",60,0,0,10,5,5,10,90]
[null,"Fuel combustion","Energy Industries","Mining (excluding fuels) and quarrying",60,0,0,10,5,5,10,90]
[null,"Fuel combustion","Energy Industries","Wood and wood products",60,0,0,10,5,5,10,90]
[null,"Fuel combustion","Energy Industries","Construction",60,0,0,10,5,5,10,90]
[null,"Fuel combustion","Energy Industries","Textiles and leather",60,0,0,10,5,5,10,90]
[null,"Fuel combustion","Energy Industries","Non-specified industry",60,0,0,10,5,5,10,90]
[null,"Fuel combustion","Transport","Civil aviation",60,0,0,10,5,5,10,90]
[null,"Fuel combustion","Transport","Road transport",60,0,0,10,5,5,10,90]
[null,"Fuel combustion","Transport","Railways",60,0,0,10,5,5,10,90]
[null,"Fuel combustion","Transport","Water-borne navigation",60,0,0,10,5,5,10,90]
[null,"Fuel combustion","Transport","Other transport",60,0,0,10,5,5,10,90]
[null,"Fuel combustion","Transport","Other Sectors",60,0,0,10,5,5,10,90]
[null,"Fuel combustion","Transport","Commercial; institutional",60,0,0,10,5,5,10,90]
[null,"Fuel combustion","Transport","Residential",100,0,0,0,0,0,0,100]
[null,"Fuel combustion","Transport","Agriculture; forestry; fishing/Fish farms",60,0,0,10,5,5,10,90]
[null,"Fuel combustion","Non-specified","Stationary",60,0,0,10,5,5,10,90]
[null,"Fuel combustion","Non-specified","Mobile",60,0,0,10,5,5,10,90]
[null,"Fuel combustion","Non-specified","Multilateral operations",60,0,0,10,5,5,10,90]
[null,"Fugitive emissions from fuels","Solid Fuels","Coal mining and handling",60,0,10,10,5,5,5,95]
[null,"Fugitive emissions from fuels","Solid Fuels","Oil and natural gas",60,0,10,10,5,5,5,95]
[null,"Fugitive emissions from fuels","Oil","Venting",60,0,10,10,5,5,5,95]
[null,"Fugitive emissions from fuels","Oil","Flaring",60,0,10,10,5,5,5,95]
[null,"Fugitive emissions from fuels","Oil","All Other",60,0,10,10,5,5,5,95]
[null,"Fugitive emissions from fuels","Oil","Natural Gas",60,0,10,10,5,5,5,95]
[null,"Fugitive emissions from fuels","Other fugitive emissions from Energy Production","Coal-to-liquids processes",60,0,10,10,5,5,5,95]
[null,"Fugitive emissions from fuels","Other fugitive emissions from Energy Production","Gas-to-liquids processes",60,0,10,10,5,5,5,95]
[null,"Fugitive emissions from fuels","Other fugitive emissions from Energy Production","Charcoal Production processes",60,0,10,10,5,5,5,95]
[null,"Fugitive emissions from fuels","Other fugitive emissions from Energy Production","Coke production",60,0,10,10,5,5,5,95]
[null,"Industrial processes and product use","Mineral Industry","Cement production",0,70,0,10,5,5,5,95]
[null,"Industrial processes and product use","Mineral Industry","Lime Production",0,70,0,10,5,5,5,95]
[null,"Industrial processes and product use","Mineral Industry","Glass Production",0,70,0,10,5,5,5,95]
[null,"Industrial processes and product use","Mineral Industry","Other process uses of carbonates",0,60,0,10,5,5,10,90]
[null,"Industrial processes and product use","Chemical industry","Ammonia production",0,70,0,10,5,5,5,95]
[null,"Industrial processes and product use","Chemical industry","Nitric acid production",0,70,0,10,5,5,5,95]
[null,"Industrial processes and product use","Chemical industry","Adipic acid production",0,70,0,10,5,5,5,95]
[null,"Industrial processes and product use","Chemical industry","Caprolactam, Glyoxal and Glyoxylic acid production",0,70,0,10,5,5,5,95]
[null,"Industrial processes and product use","Chemical industry","Carbide production",0,70,0,10,5,5,5,95]
[null,"Industrial processes and product use","Chemical industry","Titanium Dioxide production",0,70,0,10,5,5,5,95]
[null,"Industrial processes and product use","Chemical industry","Soda ash production",0,70,0,10,5,5,5,95]
[null,"Industrial processes and product use","Chemical industry","Petrochemical and Carbon Black production",0,70,0,10,5,5,5,95]
[null,"Industrial processes and product use","Chemical industry","Fluorochemical Production",0,70,0,10,5,5,5,95]
[null,"Industrial processes and product use","Metal Industry","Iron and steel production",0,70,0,10,5,5,5,95]
[null,"Industrial processes and product use","Metal Industry","Ferroalloys production",0,70,0,10,5,5,5,95]
[null,"Industrial processes and product use","Metal Industry","Aluminium production",0,60,0,10,5,5,10,90]
[null,"Industrial processes and product use","Metal Industry","Magnesium production",0,60,0,10,5,5,10,90]
[null,"Industrial processes and product use","Metal Industry","Lead production",0,60,0,10,5,5,10,90]
[null,"Industrial processes and product use","Metal Industry","Zinc production",0,60,0,10,5,5,10,90]
[null,"Industrial processes and product use","Metal Industry","Non-energy use of fuels and solvent use",0,60,null,10,5,5,10,90]
[null,"Industrial processes and product use","Metal Industry","Electronics Industry",0,60,null,10,5,5,10,90]
[null,"Industrial processes and product use","Metal Industry","Product uses as substitutes for ozone depleting substances",0,60,null,10,5,5,10,90]
[null,"Industrial processes and product use","Metal Industry","Refrigeration and air conditioning",0,60,0,10,5,5,10,90]
[null,"Industrial processes and product use","Metal Industry","Foam blowing agents",0,60,0,10,5,5,10,90]
[null,"Industrial processes and product use","Metal Industry","Fire protection",0,60,0,10,5,5,10,90]
[null,"Industrial processes and product use","Metal Industry","Aerosols",0,60,0,10,5,5,10,90]
[null,"Industrial processes and product use","Metal Industry","Solvents",0,60,0,10,5,5,10,90]
[null,"Industrial processes and product use","Metal Industry","Other product manufacture and use",0,60,0,10,5,5,10,90]
[null,"Industrial processes and product use","Metal Industry","Electrical equipment",0,60,0,10,5,5,10,90]
[null,"Industrial processes and product use","Metal Industry","SF6 and PFCs from other product uses",0,60,0,10,5,5,10,90]
[null,"Industrial processes and product use","Metal Industry","N2O from product uses",0,60,0,10,5,5,10,90]
[null,"Agriculture, forestry and land use","Livestock","Enteric fermentation",100,0,0,0,0,0,0,100]
[null,"Agriculture, forestry and land use","Livestock","Manure management",100,0,0,0,0,0,0,100]
[null,"Agriculture, forestry and land use","Land","Forest land",100,0,0,0,0,0,0,100]
[null,"Agriculture, forestry and land use","Land","Cropland",100,0,0,0,0,0,0,100]
[null,"Agriculture, forestry and land use","Land","Grassland",100,0,0,0,0,0,0,100]
[null,"Agriculture, forestry and land use","Land","Wetlands",100,0,0,0,0,0,0,100]
[null,"Agriculture, forestry and land use","Land","Settlements",100,0,0,0,0,0,0,100]
[null,"Agriculture, forestry and land use","Aggregate sources and non-CO2","GHG emissions from biomass burning",100,0,0,0,0,0,0,100]
[null,"Agriculture, forestry and land use","Aggregate sources and non-CO2","Liming",100,0,0,0,0,0,0,100]
[null,"Agriculture, forestry and land use","Aggregate sources and non-CO2","Urea Application",100,0,0,0,0,0,0,100]
[null,"Agriculture, forestry and land use","Aggregate sources and non-CO2","Direct nitrous oxide emissions from managed soils",100,0,0,0,0,0,0,100]
[null,"Agriculture, forestry and land use","Aggregate sources and non-CO2","Indirect nitrous oxide emissions from managed soils",100,0,0,0,0,0,0,100]
[null,"Agriculture, forestry and land use","Aggregate sources and non-CO2","Indirect nitrous oxide emissions from manure management",100,0,0,0,0,0,0,100]
[null,"Agriculture, forestry and land use","Aggregate sources and non-CO2","Harvested wood products",100,0,0,0,0,0,0,100]
[null,"Agriculture, forestry and land use","Waste","Solid waste disposal on land",100,0,0,0,0,0,0,100]
[null,"Agriculture, forestry and land use","Waste","Biological treatment of solid waste",100,0,0,0,0,0,0,100]
[null,"Agriculture, forestry and land use","Waste","Incineration and Open burning of waste",100,0,0,0,0,0,0,100]
[null,"Agriculture, forestry and land use","Waste","Wastewater treatment and discharge",100,0,0,0,0,0,0,100]
[null,"Agriculture, forestry and land use","Additional Categories","Other",60,0,0,10,10,5,10,95]